Cogmind - Beta 13 X1 @@@ ROGUE MODE // 2023.11.23 @ 12:11:32 Player: maxwell Result: Self-destructed Performance ------------- Evolutions (9) 4500 Regions Visited (36) 7200 Robots Destroyed (396) 1980 Value Destroyed (17549) 17549 Prototype IDs (76) 1520 Alien Tech Used (4) 800 Bonus (11724) 11724 TOTAL SCORE: 45273 Bonus ------- High Alert Combat Kills 1183 Follower Combat Kills 3672 Met Data Miner 300 Met Zhirov 300 Met Warlord at Base 500 MAIN.C Attacked Warlord 500 Warlord Defense Kills 1750 Met R17 at Cetus 500 Used Core Reset Matrix 3000 Met Warlord at Research 2000 Friendly Fire -1981 Cogmind --------- Core Integrity 1053/1600 Matter 290/300 Energy 58/100 System Corruption 0% Temperature Cool (0) Movement Rolling (170) Ox4 Location -1/Access Parts ------- > --- POWER (2) -------- (None) > --- PROPULSION (4) --- High-density Centrium Wheel > --- UTILITY (13) ----- Huge Storage Unit Advanced Signal Interpreter Long-range Terrain Scanner Advanced Launcher Guidance Computer Graphene Brace Experimental Field Recycling Unit > --- WEAPON (6) ------- (None) > --- INVENTORY (25) --- Matter Drive Compact Matter Pod (150) Advanced Sensor Array Advanced Signal Interpreter Particle Accelerator Layered Medium Armor Plating Experimental Thermal Defense Suite Point Defense Array Subatomic Replicator Core Cannon Peak State ------------ > --- POWER ------------ Light Antimatter Reactor Light Antimatter Reactor > --- PROPULSION ------- Centrium Wheel Centrium Wheel Centrium Wheel > --- UTILITY ---------- Huge Storage Unit Advanced Signal Interpreter Layered Medium Armor Plating Wardrone Bay > --- WEAPON ----------- Plasma Rifle Advanced Plasma Cannon Heavy Phase Cannon Heavy Neutron Cannon > --- INVENTORY -------- Particle Reactor Improved Heavy Siege Treads Advanced Heat Sink Improved Coolant Injector Compact Matter Pod Advanced Sensor Array Advanced Sensor Array Advanced Sensor Array Long-range Terrain Scanner Long-range Terrain Scanner Particle Accelerator Layered Medium Armor Plating Layered Medium Armor Plating Advanced Powered Armor Advanced Powered Armor Graphene Brace Experimental Thermal Defense Suite Advanced Hacking Suite Advanced System Shield Long-range Tractor Beam Heavy Neutron Cannon Heavy Shock Bomb Launcher Micro-nuke Launcher Enhanced Force Lance [Rating: 191] Favorites ----------- Power Improved Deuterium Engine Engine Improved Deuterium Engine Power Core Micro Fission Core Reactor Antimatter Reactor Propulsion Light Treads Treads Light Treads Leg Aluminum Leg Wheel Centrium Wheel Hover Unit Backup Propulsion III Utility Huge Storage Unit Device Advanced Heat Sink Storage Huge Storage Unit Processor Advanced Targeting Computer Hackware Improved Hacking Suite Protection Layered Heavy Armor Plating Weapon Enhanced Autogun Energy Gun Heavy Beamcaster Energy Cannon Cooled Plasma Cannon Ballistic Gun Enhanced Autogun Ballistic Cannon Hardcell Cannon Launcher Long-range Missile Launcher Special Weapon RU-N14's Throwing Claymores v3 Impact Weapon Heavy Mace Slashing Weapon Makeshift Axe Piercing Weapon Enhanced Force Lance Build | -11 -10 -10 -9 -9 -9 -8 -8 -7 -7 -7 -7 -6 -6 -6 -6 -6 -6 -5 -5 -5 -5 -5 -5 -4 -4 -4 -4 -4 -4 -4 -3 -3 -3 -2 -2 -1 ------- Run | Jun Mat Min Mat Min Exi Min Mat Fac Low Low Dat Pro Fac Was Fac Ext Cet Fac Was Fac Upp Upp War Pro Fac Was Fac Upp Upp Zhi Pro Res Qua Res Tes Acc Slots Evolved 18 | . . . 2 . . . 2 2 . . . . 2 . . . . 2 . . . . . . 2 . . . . . . 2 . 2 . 2 Power 1 | . . . . . . . . . . . . . 1 . . . . . . . . . . . . . . . . . . . . . . . Propulsion 2 | . . . 1 . . . . 1 . . . . . . . . . . . . . . . . . . . . . . . . . . . . Utility 11 | . . . 1 . . . 1 1 . . . . 1 . . . . 1 . . . . . . 2 . . . . . . 2 . 2 . . Weapon 4 | . . . . . . . 1 . . . . . . . . . . 1 . . . . . . . . . . . . . . . . . 2 Parts Attached 386 | . 2 4 12 8 . 4 19 26 20 9 . 11 34 5 2 21 4 8 6 26 5 . 11 . 14 . 12 1 9 6 3 45 33 12 12 2 Power 26 | . . . 2 1 . . . 1 2 . . . 1 . . 4 . . . 1 1 . 1 . . . 2 . . 1 . 4 3 . 2 . Engine 8 | . . . . 1 . . . 1 2 . . . 1 . . 3 . . . . . . . . . . . . . . . . . . . . Core 7 | . . . 2 . . . . . . . . . . . . 1 . . . 1 1 . . . . . 2 . . . . . . . . . Reactor 11 | . . . . . . . . . . . . . . . . . . . . . . . 1 . . . . . . 1 . 4 3 . 2 . Propulsion 62 | . . 2 2 2 . 1 3 7 4 . . 2 7 . . 5 . 3 3 2 2 . . . 3 . . . 2 . . 3 4 2 3 . Treads 33 | . . 2 2 2 . 1 3 7 4 . . 2 2 . . . . . 2 2 2 . . . . . . . . . . . 1 . 1 . Leg . | . . . . . . . . . . . . . . . . . . . . . . . . . . . . . . . . . . . . . Wheel 28 | . . . . . . . . . . . . . 5 . . 5 . 3 . . . . . . 3 . . . 2 . . 3 3 2 2 . Hover 1 | . . . . . . . . . . . . . . . . . . . 1 . . . . . . . . . . . . . . . . . Flight . | . . . . . . . . . . . . . . . . . . . . . . . . . . . . . . . . . . . . . Utility 174 | . 2 2 3 2 . . 4 14 7 6 . 5 14 3 2 9 1 3 3 14 1 . 6 . 7 . 7 . 4 2 1 19 20 9 3 1 Device 105 | . 1 2 1 . . . 1 6 4 4 . 4 10 1 . 5 . 1 1 9 1 . 5 . 4 . 4 . 1 2 . 14 16 4 3 1 Storage 9 | . 1 . 1 1 . . . . . . . . . . . 2 . . 1 2 . . . . . . . . . . . 1 . . . . Processor 15 | . . . . . . . 1 3 . . . . . 1 . . . . . . . . . . . . 3 . 1 . 1 . 1 4 . . Hackware 7 | . . . . . . . . . . . . . . . 2 . . 1 . . . . . . 2 . . . . . . 2 . . . . Protection 38 | . . . 1 1 . . 2 5 3 2 . 1 4 1 . 2 1 1 1 3 . . 1 . 1 . . . 2 . . 2 3 1 . . Artifact . | . . . . . . . . . . . . . . . . . . . . . . . . . . . . . . . . . . . . . Weapon 124 | . . . 5 3 . 3 12 4 7 3 . 4 12 2 . 3 3 2 . 9 1 . 4 . 4 . 3 1 3 3 2 19 6 1 4 1 Energy Gun 31 | . . . 1 . . . 2 . . . . 1 5 . . 1 1 2 . 5 . . . . 2 . 1 . . . . 8 . . 1 1 Energy Cannon 26 | . . . . . . . . . . . . . 4 1 . 2 . . . 3 . . 2 . 1 . . . . . . 8 4 . 1 . Ballistic Gun 29 | . . . 4 2 . 2 7 4 4 2 . 3 1 . . . . . . . . . . . . . . . . . . . . . . . Ballistic Cannon 4 | . . . . . . . . . . . . . . . . . . . . . . . . . . . 2 . . 1 1 . . . . . Launcher 22 | . . . . 1 . 1 2 . 3 1 . . 1 . . . 2 . . 1 1 . . . . . . 1 1 . . 3 2 . 2 . Special Weapon 5 | . . . . . . . . . . . . . . . . . . . . . . . 2 . 1 . . . 1 . 1 . . . . . Impact Weapon 2 | . . . . . . . 1 . . . . . 1 . . . . . . . . . . . . . . . . . . . . . . . Slashing Weapon 4 | . . . . . . . . . . . . . . 1 . . . . . . . . . . . . . . 1 2 . . . . . . Piercing Weapon 1 | . . . . . . . . . . . . . . . . . . . . . . . . . . . . . . . . . . 1 . . Special Melee Weapon . | . . . . . . . . . . . . . . . . . . . . . . . . . . . . . . . . . . . . . Unidentified Prototypes 42 | . . . 3 . . . 4 . . . . . 5 . . 3 1 1 2 2 . . 4 . 1 . . . . 3 . 4 4 2 1 2 Corrupted Parts 4 | . . . . . . . . . 1 . . 2 . . . . 1 . . . . . . . . . . . . . . . . . . . System Corruption 21 | . . . . . . . . . 10 . . 9 . . . . 2 . . . . . . . . . . . . . . . . . . . Parts Lost 120 | . . . 5 5 . 2 . 8 7 2 . . 3 . . 11 4 . 5 1 1 . . . . 1 6 . 5 . . 20 7 1 19 7 Power 18 | . . . 2 . . . . . 2 . . . . . . 3 . . . 1 . . . . . . 1 . 1 . . 3 1 . 2 2 Propulsion 34 | . . . 1 2 . 1 . 4 3 . . . 3 . . 5 3 . 2 . 1 . . . . . . . 1 . . 2 1 . 3 2 Utility 36 | . . . . 2 . . . 3 1 1 . . . . . 1 1 . 1 . . . . . . . 4 . 2 . . 6 3 1 10 . Weapon 32 | . . . 2 1 . 1 . 1 1 1 . . . . . 2 . . 2 . . . . . . 1 1 . 1 . . 9 2 . 4 3 Highest Loss Streak 9 | . . . 1 5 . 2 . 3 4 1 . . 2 . . 4 3 . 5 1 1 . . . . 1 4 . 5 . . 6 4 1 9 4 To Critical Strikes 2 | . . . . . . . . . . 1 . . . . . . . . . . . . . . . . 1 . . . . . . . . . Average Slot Usage (%) 91 | . 99 99 99 100 100 99 90 99 99 99 77 99 96 98 100 93 90 98 69 83 92 100 87 88 81 74 75 85 83 72 91 67 81 87 82 46 Engine 5 | . 14 14 5 6 11 11 9 7 6 7 7 7 12 13 13 11 6 5 8 7 . . 3 . . . . . . . . . . . . . Core 1 | . . . 5 4 . . . . . . . . . . . 1 6 5 1 2 9 11 4 . . . 2 10 5 5 5 1 . . . . Reactor 1 | . . . . . . . . . . . . . . . . . . . . . . . 1 5 5 5 3 . . 2 5 6 9 8 7 6 Treads 17 | . . 23 32 33 33 32 27 29 29 30 30 30 17 . . . . . 2 14 17 23 23 23 12 . . . . . . . 2 4 5 2 Leg 1 | . 28 4 . . . . . . . . . . . . . . . . . . . . . . . . . . . . . . . . . . Wheel 4 | . . . . . . . . . . . . . 8 26 26 20 20 23 6 . . . . . 4 15 15 15 19 21 21 13 9 8 4 6 Device 10 | . 13 14 11 6 . . 7 7 4 5 . 5 8 7 . 9 6 9 3 7 17 17 19 23 17 15 12 10 7 7 5 11 21 26 25 11 Storage 7 | . 14 14 11 15 22 22 10 7 7 7 7 7 6 6 6 6 6 5 3 6 5 5 5 5 5 5 5 5 5 5 5 4 4 4 4 4 Processor 9 | . . . . . . . . 10 23 23 23 23 16 13 13 6 6 5 5 5 5 5 5 5 5 5 7 15 13 10 12 9 5 9 10 8 Hackware 2 | . . . . . . . . . . . . . . . 6 13 6 6 11 7 5 5 2 . 6 10 5 5 5 5 5 1 . . . . Protection 5 | . . . 10 11 11 11 9 10 2 1 7 1 5 9 11 3 8 10 4 5 5 5 1 5 5 5 5 5 6 10 10 2 7 8 7 . Energy Gun 3 | . . . . . . . . . . . . . 7 6 6 7 14 16 11 17 11 11 6 . 2 . 3 . . . . 5 1 . . 2 Energy Cannon 3 | . . . . . . . . . . . . . 6 13 13 11 . . . 1 5 5 4 11 13 11 5 5 . . . 4 12 13 6 . Ballistic Gun 10 | . 28 28 21 16 22 20 26 22 22 22 1 22 4 . . . . . . . . . . . . . . . . . . . . . . . Launcher 1 | . . . . 5 . . . . . . . . . . . . 4 5 1 . 5 5 . . . . . 1 4 . . . 2 4 3 2 Naked Turns . | . . . . . . . . . . . . . . . . . . . . . . . . . . . . . . . . . . . . . Heaviest Build 198 | 12 28 30 99 101 98 98 113 113 107 110 109 111 135 135 132 131 127 133 131 192 138 137 173 173 189 172 188 153 158 150 162 198 198 194 193 151 Greatest Support 155 | 20 20 40 60 60 60 60 60 80 80 80 80 80 80 52 52 52 40 40 70 124 124 107 107 107 107 60 60 60 64 64 64 64 75 32 155 36 Greatest Overweight (x) 12 | . 1 1 1 1 1 1 1 2 2 1 1 1 12 2 2 12 11 3 5 2 1 1 1 1 6 2 3 2 2 2 2 5 5 7 7 7 Average Overweight (x) 1 | . . . . 1 1 1 1 1 1 1 1 1 4 2 2 3 3 3 1 . . 1 . 1 3 2 2 2 2 1 2 2 4 6 4 4 Largest Inventory Capacity 25 | 8 15 15 25 25 25 25 25 25 25 25 25 25 25 25 25 25 25 25 25 25 25 25 25 25 25 25 25 25 25 25 25 25 25 25 25 25 Average Capacity 24 | 8 14 15 22 25 25 25 25 25 25 25 25 25 25 25 25 25 25 25 19 25 25 25 25 25 25 25 25 25 25 25 25 25 25 25 25 25 Most Carried 25 | 6 15 15 25 25 25 25 25 25 23 21 24 24 25 25 25 25 25 24 20 25 25 24 25 25 25 24 23 21 21 24 24 25 25 25 25 15 Average Carried 21 | 6 12 13 17 22 21 23 24 24 20 20 23 20 23 24 24 22 22 18 13 23 24 23 24 25 22 24 22 20 17 21 21 22 21 24 21 14 Final Capacity 25 | 8 15 15 25 25 25 25 25 25 25 25 25 25 25 25 25 25 25 25 25 25 25 25 25 25 25 25 25 25 25 25 25 25 25 25 25 25 Final Carried 25 | 6 15 13 23 21 25 23 25 20 19 21 24 22 25 25 25 23 25 20 19 24 23 24 25 25 24 24 21 21 16 21 24 23 25 25 15 12 Class Distribution -------------------- 25% | Mutant 15% | Scavenger-Tank 13% | Scavenger-Skirmisher 13% | Scavenger-Mutant 11% | Scavenger-Gunner 3% | Gunner Dominant Class ---------------- Mutant | -10/Materials Mutant | -10/Mines Mutant | -9/Materials Mutant | -9/Mines Mutant | -9/Exiles Mutant | -8/Mines Scavenger-Tank | -8/Materials Scavenger-Tank | -7/Factory Scavenger-Skirmisher | -7/Lower Caves Scavenger-Skirmisher | -7/Lower Caves Scavenger-Mutant | -7/Data Miner Scavenger-Skirmisher | -6/Proximity Caves Scavenger-Skirmisher | -6/Factory Scavenger-Tank | -6/Waste Scavenger-Tank | -6/Factory Scavenger-Gunner | -6/Extension Scavenger-Mutant | -6/Cetus Scavenger-Gunner | -5/Factory Hacker-Mutant | -5/Waste Hacker-Gunner | -5/Factory Scavenger-Tank | -5/Upper Caves Scavenger-Mutant | -5/Upper Caves Commander-Mutant | -5/Warlord Mutant | -4/Proximity Caves Hacker-Tank | -4/Factory Hacker-Mutant | -4/Waste Tank | -4/Factory Gunner | -4/Upper Caves Mutant | -4/Upper Caves Mutant | -4/Zhirov Derelict-Mutant | -3/Proximity Caves Mutant | -3/Research Scavenger-Mutant | -3/Quarantine Scavenger-Mutant | -2/Research Scavenger-Assassin | -2/Testing Mutant | -1/Access Resources | -11 -10 -10 -9 -9 -9 -8 -8 -7 -7 -7 -7 -6 -6 -6 -6 -6 -6 -5 -5 -5 -5 -5 -5 -4 -4 -4 -4 -4 -4 -4 -3 -3 -3 -2 -2 -1 ----------- Run | Jun Mat Min Mat Min Exi Min Mat Fac Low Low Dat Pro Fac Was Fac Ext Cet Fac Was Fac Upp Upp War Pro Fac Was Fac Upp Upp Zhi Pro Res Qua Res Tes Acc Matter Collected 10662 | 200 324 163 455 285 . . 756 1719 651 521 . 465 679 78 34 232 81 24 86 497 159 . 110 . 130 . 270 135 511 230 91 740 336 130 548 22 Remotely 612 | . . . . . . . . 54 . . . . . . . . . . . . . . 100 . . . . . . . . . . . 458 . Salvage Created 16653 | . 445 . 1144 60 . 72 1310 1752 913 320 . 406 1172 244 34 1006 671 24 380 660 223 . 400 90 744 . 421 98 390 287 141 967 1171 120 981 7 Parts 725 | . 33 . 67 15 . 4 70 87 41 9 . 17 36 4 . 32 32 2 5 15 9 . 12 7 37 . 12 2 5 2 1 40 57 3 66 3 Haulers Intercepted 18 | . 2 . 5 . . . 4 3 . . . . 3 . . . . . . . . . . . . . . . . . . . . 1 . . Recyclers Shooed 13 | . . . 9 . . . . 1 . . . . 2 . . . . . . 1 . . . . . . . . . . . . . . . . Parts Field Recycled . | . . . . . . . . . . . . . . . . . . . . . . . . . . . . . . . . . . . . . Retrieved Matter . | . . . . . . . . . . . . . . . . . . . . . . . . . . . . . . . . . . . . . Parts Self-Destructed 65 | . . . . . . . . . 27 6 . 16 . . . . . . . . 2 . . 7 . . . 1 3 2 1 . . . . . Prevented 20 | . . . . . . . . . 7 . . 5 . . . . . . . . 8 . . . . . . . . . . . . . . . Kills | -11 -10 -10 -9 -9 -9 -8 -8 -7 -7 -7 -7 -6 -6 -6 -6 -6 -6 -5 -5 -5 -5 -5 -5 -4 -4 -4 -4 -4 -4 -4 -3 -3 -3 -2 -2 -1 ------- Run | Jun Mat Min Mat Min Exi Min Mat Fac Low Low Dat Pro Fac Was Fac Ext Cet Fac Was Fac Upp Upp War Pro Fac Was Fac Upp Upp Zhi Pro Res Qua Res Tes Acc Combat Hostiles Destroyed 298 | . 9 . 15 8 . 3 16 29 19 8 . 7 6 1 . 17 8 . 2 15 4 . 12 10 18 . 10 3 15 . 3 21 17 . 22 . Guns 111 | . 9 . 15 1 . 1 16 29 5 4 . 7 . . . 7 . . . 6 1 . . . 3 . 2 . . . . 1 4 . . . Cannons 61 | . . . . . . . . . . . . . 2 1 . 8 . . . 2 . . 4 2 9 . 8 1 5 . 1 9 7 . 2 . AOE 99 | . . . . 7 . 2 . . 14 4 . . 1 . . . . . . 4 2 . 8 8 6 . . 2 10 . 2 8 5 . 16 . Classes Destroyed 24 | . 5 . 4 . . . 2 1 1 . . . 1 1 . 1 . . . 1 . . 5 1 . . . . . . . . . . 1 . Worker 18 | . . . 1 1 . . . 2 . . . . 6 . . 1 . . . 1 . . . . 3 . . . . . . 1 . . 2 . Builder 12 | . . . . . . . . . . . . . 2 . . 1 . . . . . . . . 1 . 1 . . . . . . . 6 1 Tunneler 3 | . . . 1 . . 1 1 . . . . . . . . . . . . . . . . . . . . . . . . . . . . . Hauler 18 | . 2 . 5 . . . 4 3 . . . . 3 . . . . . . . . . . . . . . . . . . . . 1 . . Recycler 11 | . . . 2 . . . 3 3 . . . . 3 . . . . . . . . . . . . . . . . . . . . . . . Mechanic 2 | . . . . . . . . . . . . . . . . . . . . . . . 1 . . . . . . . . . . . 1 . Operator 6 | . 1 . . . . . 1 . . . . . . . . 1 . . . . . . . . 1 . . . . . . 1 1 . . . Drone 2 | . . . . . . . . . . . . . . . . . . . . . . . . 2 . . . . . . . . . . . . Watcher 20 | . 2 . 1 . . . 3 3 . . . . 1 . 1 1 2 1 . 1 . . . . 3 . . . . . . 1 . . . . Swarmer 73 | . 3 . . 7 . . 3 10 5 4 . . 1 . . 6 . . . 4 1 . . 4 5 . 2 1 . . . 8 . . 9 . Grunt 97 | . 6 . 11 . . 3 9 7 5 2 . 5 3 . . 6 . . . 5 2 . . 4 . . 3 1 12 . 3 4 6 . . . Brawler 12 | . . . . . . . 1 . 4 . . . . . . . . . . . . . 3 . . . 2 . 1 . . . . . 1 . Duelist 6 | . . . . . . . . . 3 . . 1 . . . . . . . . . . 1 . . . . . 1 . . . . . . . Protector 3 | . . . . . . . . . . . . . . . . . . . . . . . 3 . . . . . . . . . . . . . Researcher 1 | . . . . . . . . . . . . . . . . . . . . . . . . . . . . . . . . . . . 1 . Sentry 28 | . . . 4 . . . 2 4 2 1 . 1 . . . 3 . . . 1 1 . . . 1 . 1 1 1 . . 3 . . 2 . Demolisher 2 | . . . . . . . . . . . . . . . . . . . . . . . 2 . . . . . . . . . . . . . Hunter 20 | . . . . . . . 1 1 . 1 . . . . . . . . . . . . . . 6 . 2 . . . . . 3 . 6 . Programmer 36 | . . . . . . . . 7 . . . . 2 . . . . . . 4 . . . . 5 . . . . . . 6 8 . 4 . Behemoth 2 | . . . . . . . . . . . . . . . . 1 . . . . . . . . 1 . . . . . . . . . . . Compactor 3 | . . . . . . . . . . . . . . 1 . . . . 2 . . . . . . . . . . . . . . . . . Cetus Guard 8 | . . . . . . . . . . . . . . . . . 8 . . . . . . . . . . . . . . . . . . . Striker 1 | . . . . . . . . . . . . . . . . . . . . . . . 1 . . . . . . . . . . . . . Executioner 2 | . . . . . . . . . . . . . . . . . . . . . . . 2 . . . . . . . . . . . . . Surgeon 1 | . . . . . . . . . . . . . . . . . . . . 1 . . . . . . . . . . . . . . . . Thug 4 | . . . . . . . . . . . . . . . . 1 . . . 1 . . 2 . . . . . . . . . . . . . Butcher 1 | . . . . . . . . . . . . . . . . 1 . . . . . . . . . . . . . . . . . . . . Mutant 2 | . . . . . . . . . . . . . . . . . . . . . . . 2 . . . . . . . . . . . . . Commander 1 | . . . . . . . . . . . . . . . . . . . . . . . 1 . . . . . . . . . . . . . Best Kill Streak 21 | . 4 . 5 4 . 4 6 5 9 4 . 2 6 1 1 5 5 1 2 9 3 . 7 4 12 . 4 3 8 . 3 7 4 1 21 1 Combat Bots Only 10 | . 3 . 4 4 . 3 3 5 9 4 . 2 4 1 . 4 4 . 2 8 3 . 6 4 10 . 3 3 8 . 3 6 4 . 8 . Max Kills in Single Turn 5 | . 1 . 1 3 . 1 1 2 3 3 . 1 2 1 1 1 2 1 1 2 1 . 5 3 3 . 1 1 3 . 2 4 1 1 4 1 Gunslinging 1 | . . . . . . . . 1 . . . . . . . . . . . . . . . . . . . . . . . . . . . . Exploded 4 | . . . . 3 . 1 . . 3 3 . . 1 . . . . . . 2 1 . 3 3 2 . . 1 3 . 2 4 1 . 3 . Melee . | . . . . . . . . . . . . . . . . . . . . . . . . . . . . . . . . . . . . . Uniques/NPCs Destroyed 1 | . . . . 1 . . . . . . . . . . . . . . . . . . . . . . . . . . . . . . . . YI-UF0 (-9/Mines) Combat | -11 -10 -10 -9 -9 -9 -8 -8 -7 -7 -7 -7 -6 -6 -6 -6 -6 -6 -5 -5 -5 -5 -5 -5 -4 -4 -4 -4 -4 -4 -4 -3 -3 -3 -2 -2 -1 -------- Run | Jun Mat Min Mat Min Exi Min Mat Fac Low Low Dat Pro Fac Was Fac Ext Cet Fac Was Fac Upp Upp War Pro Fac Was Fac Upp Upp Zhi Pro Res Qua Res Tes Acc Damage Taken 24554 | . 215 53 515 697 . 198 487 1450 1032 274 . 231 619 . . 1561 364 . 228 1791 90 79 46 132 970 95 1106 164 1518 . 71 3366 2302 299 3460 1141 Core 2879 | . 47 . 69 118 . . 44 40 76 45 . 39 91 . . 246 23 . 190 98 14 31 . . 88 . 125 17 130 . . 564 184 . 207 393 Absorbed by Shields 1619 | . . . 176 8 . . . 257 . 17 . . 4 . . 173 . . . 11 10 . 45 72 628 30 188 . . . . . . . . . Reduced by Siege Mode 297 | . . . . . . . . . . . . . . . . . . . . 6 . . . . . . . . . . . . 23 . 268 . Redirected to Shielding 170 | . . . 15 25 . . . . . . . . 37 . . 93 . . . . . . . . . . . . . . . . . . . . Ignored by Resistances 139 | . . . . . . . . . . . . . . . . . . . . 4 . . . . . . . . . . . 135 . . . . Regen/Repaired (Parts) 359 | . . . . . . . . . . . . . . . . 147 91 . 89 32 . . . . . . . . . . . . . . . . Core Remaining (%) 69 | 100 . 81 . . . 53 92 . . . . 71 . . . . 57 . . . . . . 66 . . . . . . 68 . 33 . 77 . Volleys Fired 911 | . 48 . 82 13 . 10 59 101 29 21 . 23 40 7 3 62 12 1 10 36 10 . 12 10 47 . 23 5 29 . 3 76 73 8 46 12 Largest 4 | . 2 . 2 2 . 2 3 3 3 3 . 3 3 3 3 3 1 3 3 3 3 . 1 2 4 . 4 3 2 . 2 3 4 1 2 1 Hottest 373 | . 40 . 46 46 . 46 75 75 75 83 . 83 234 180 180 180 240 210 210 243 197 . 105 70 145 . 201 161 126 . 126 368 373 100 208 90 Shots Fired 2039 | . 96 . 164 22 . 14 177 301 61 58 . 72 112 21 9 183 13 3 30 93 12 . 12 11 125 . 81 10 39 . 7 117 127 8 49 12 Gun 1266 | . 96 . 164 18 . 8 177 301 50 53 . 72 57 7 3 78 2 3 30 66 2 . . . 21 . 16 . . . . 19 12 . . 11 Cannon 625 | . . . . . . . . . . . . . 54 14 6 105 . . . 22 1 . 3 2 92 . 65 6 22 . 6 91 106 8 22 . Launcher 108 | . . . . 4 . 6 . . 11 5 . . 1 . . . 11 . . 5 9 . . . . . . 4 8 . . 7 9 . 27 1 Special 40 | . . . . . . . . . . . . . . . . . . . . . . . 9 9 12 . . . 9 . 1 . . . . . Kinetic 1050 | . 96 . 164 18 . 8 177 301 50 53 . 71 12 . . . . . . . . . . . . . 42 4 22 . 6 26 . . . . Thermal 769 | . . . . . . . . . . . . 1 94 21 9 183 2 3 30 88 3 . 3 2 92 . 23 2 . . . 68 118 3 13 11 Explosive 107 | . . . . 4 . 6 . . 4 5 . . 1 . . . . . . 5 2 . 9 9 12 . . 4 17 . 1 7 . . 20 1 Electromagnetic 76 | . . . . . . . . . 7 . . . 5 . . . 11 . . . 7 . . . . . . . . . . 16 9 5 16 . Entropic 37 | . . . . . . . . . . . . . . . . . . . . . . . . . 21 . 16 . . . . . . . . . Robot Hit Streak 30 | . 16 . 13 4 . 7 13 19 16 14 . 21 14 19 9 28 . 5 23 15 16 . 7 3 15 . 13 5 18 . 13 30 16 3 21 22 Robot Miss Streak 6 | . 4 . 6 2 . 1 2 3 3 3 . 3 2 1 2 4 . 2 3 4 . . 1 2 4 . 5 1 1 . 1 4 2 2 2 . Penetration Max 1 | . . . . . . . . . . . . 1 . . . . . . . . . . . . . . . . . . . . . . . . Secondary Targets 13 | . . . 3 . . . 3 4 1 . . 1 . . . . . . . 1 . . . . . . . . . . . . . . . . Max Gunslinging Chain 1 | . . . 1 . . . 1 1 1 . . 1 . . . . . . . 1 . . . . . . . . . . . . . . . . Shots Hit Robots 1332 | . 63 . 106 13 . 5 113 208 41 31 . 50 73 20 5 110 . 3 27 69 9 . 7 5 75 . 39 6 33 15 4 83 63 6 43 7 Core Hits 745 | . 23 . 41 14 . 10 49 82 40 15 . 18 28 2 . 51 15 1 6 35 7 . 39 11 43 . 20 7 36 4 8 42 37 . 59 2 Critical Kills 11 | . 1 . . . . . 1 1 . . . . 3 . . 1 . . . 1 . . . . . . . . . . . 2 1 . . . Critical Parts Destroyed 5 | . 1 . . . . . . 2 1 . . . . . . . . . . . . . . . . . . . . . . . . . . 1 Critical Strikes 45 | . 2 . . . . . 1 3 1 . . . 4 . . 2 . . 4 9 . . 1 2 . . . 1 5 . 3 5 1 . . 1 Burn 15 | . . . . . . . . . . . . . 1 . . 1 . . 4 8 . . . . . . . . . . . 1 . . . . Meltdown 8 | . . . . . . . . . . . . . 3 . . 1 . . . 1 . . . . . . . . . . . 2 1 . . . Destroy 8 | . 2 . . . . . 1 3 1 . . . . . . . . . . . . . . . . . . . . . . . . . . 1 Blast 8 | . . . . . . . . . . . . . . . . . . . . . . . . . . . . 1 3 . 2 2 . . . . Sever 6 | . . . . . . . . . . . . . . . . . . . . . . . 1 2 . . . . 2 . 1 . . . . . Melee Attacks 22 | . . . . . . . 1 . . . . . . . . . . . . . . . . . . . . . . 16 . . . . 4 1 Impact 1 | . . . . . . . 1 . . . . . . . . . . . . . . . . . . . . . . . . . . . . . Slashing 16 | . . . . . . . . . . . . . . . . . . . . . . . . . . . . . . 16 . . . . . . Piercing 5 | . . . . . . . . . . . . . . . . . . . . . . . . . . . . . . . . . . . 4 1 Sneak Attacks 1 | . . . . . . . . . . . . . . . . . . . . . . . . . . . . . . . . . . . 1 . Combat Hostiles . | . . . . . . . . . . . . . . . . . . . . . . . . . . . . . . . . . . . . . Follow-up Attacks 1 | . . . . . . . . . . . . . . . . . . . . . . . . . . . . . . 1 . . . . . . Damage Inflicted 53610 | . 826 8 1626 686 . 671 1788 3709 1663 810 . 846 2352 542 167 3315 974 51 625 2600 422 . 2657 1870 5059 . 1692 442 3845 1200 420 4258 3266 172 4832 216 Guns 16662 | . 822 . 1626 192 . 100 1788 3691 597 553 . 846 875 130 37 1136 . 51 625 1202 47 . . . 869 . 502 . . . . 632 157 . . 184 Cannons 13279 | . . . . . . . . . . . . . 1300 412 130 2179 . . . 500 . . . 53 1678 . 996 109 678 . 131 2153 2181 172 607 . Explosions 20526 | . . . . 449 . 551 . . 1066 257 . . 177 . . . 974 . . 895 375 . 2257 1572 1991 . 194 333 2709 . 235 1473 928 . 4058 32 Melee 1367 | . . . . . . . . . . . . . . . . . . . . . . . . . . . . . . 1200 . . . . 167 . Ramming 104 | . 4 8 . 45 . 20 . 18 . . . . . . . . . . . 3 . . . . 6 . . . . . . . . . . . Kinetic 12513 | . 822 . 1626 192 . 100 1788 3691 597 553 . 834 91 . . . . . . . . . . . . . 636 41 678 . 131 733 . . . . Thermal 16260 | . . . . . . . . . 335 . . 12 1994 542 167 3315 . 51 625 1702 47 . . 53 1678 . 554 68 . . . 1778 2547 33 575 184 Explosive 16771 | . . . . 449 . 551 . . 218 257 . . 177 . . . . . . 895 124 . 2257 1572 1991 . . 333 2709 . 235 1473 . . 3498 32 Electromagnetic 3552 | . . . . . . . . . 513 . . . 90 . . . 974 . . . 251 . . . . . . . . . . 274 719 139 592 . Impact . | . . . . . . . . . . . . . . . . . . . . . . . . . . . . . . . . . . . . . Slashing 2872 | . . . . . . . . . . . . . . . . . . . . . . . 400 245 515 . . . 458 1200 54 . . . . . Piercing 167 | . . . . . . . . . . . . . . . . . . . . . . . . . . . . . . . . . . . 167 . Entropic 1371 | . . . . . . . . . . . . . . . . . . . . . . . . . 869 . 502 . . . . . . . . . Highest Corruption 39 | . . . . . . . . 5 13 13 13 18 1 1 1 1 3 . . 6 6 . . . 3 12 12 5 5 5 5 14 39 1 11 . Average Corruption 7 | . . . . . . . . 2 10 13 13 9 1 1 1 1 1 . . 3 3 . . . 2 7 7 5 5 5 5 10 25 1 2 . Corruption Purged 40 | . . . . . . . . 5 . . . 4 . . . . . . . 11 6 . . . 6 . 8 . . . . . . . . . Corruption Blocked 17 | . . . . . . . . . . . . . 13 . . . . . . . . . . . . . . . . . . . . . 4 . Effects 455 | . . . . . . . . 23 44 101 7 67 9 4 2 15 7 . . 21 1 . . . 8 2 11 14 12 5 8 48 36 1 9 . Message Errors 118 | . . . . . . . . 9 7 26 2 16 3 1 1 3 2 . . 4 . . . . 2 1 2 5 3 . 2 14 12 . 3 . Matter Fused 80 | . . . . . . . . 4 13 15 . 13 . 1 1 2 1 . . 4 . . . . . . 3 4 2 1 2 7 5 1 1 . Heat Flow Errors 50 | . . . . . . . . 1 5 17 2 8 . . . 2 . . . 2 . . . . . 1 . 1 2 . 1 5 2 . 1 . Energy Discharges 62 | . . . . . . . . 3 3 12 1 12 2 . . 1 2 . . 1 . . . . 2 . 3 . 1 1 1 10 5 . 2 . Parts Rejected 1 | . . . . . . . . . . . . . . . . . . . . . . . . . . . . . . . . . 1 . . . Parts Fused 6 | . . . . . . . . . . 1 . 3 . . . 1 . . . . . . . . . . . . . . . 1 . . . . Data Loss (minor) 58 | . . . . . . . . 1 6 13 2 6 1 1 . 4 . . . 7 1 . . . 1 . 2 1 3 1 . 4 4 . . . Data Loss (major) 24 | . . . . . . . . 1 3 6 . 2 . 1 . . . . . 1 . . . . 2 . 1 2 . 1 . 4 . . . . Misfires 28 | . . . . . . . . 1 2 8 . 3 2 . . . 1 . . 2 . . . . 1 . . 1 . . 2 2 3 . . . Alerts 12 | . . . . . . . . . 4 2 . 2 1 . . 1 1 . . . . . . . . . . . . 1 . . . . . . Misdirections 3 | . . . . . . . . . . . . 1 . . . . . . . . . . . . . . . . . . . 1 . . 1 . Weapon Failures 13 | . . . . . . . . 3 1 1 . 1 . . . 1 . . . . . . . . . . . . 1 . . . 4 . 1 . Overload Shots 19 | . . . . . . . . . . . . . . . . . 1 . . . . . 3 . . . . . . . . 15 . . . . Effects 5 | . . . . . . . . . . . . . . . . . . . . . . . . . . . . . . . . 5 . . . . Energy Bleed 1 | . . . . . . . . . . . . . . . . . . . . . . . . . . . . . . . . 1 . . . . Heat Surge 3 | . . . . . . . . . . . . . . . . . . . . . . . . . . . . . . . . 3 . . . . Short Circuit 1 | . . . . . . . . . . . . . . . . . . . . . . . . . . . . . . . . 1 . . . . Overflow Damage 1705 | . . . . 49 . 8 . . 55 . . . 42 . 47 43 7 . . 70 . . 11 128 125 . 85 . 97 186 . 256 116 . 380 . Projectiles 574 | . . . . . . . . . . . . . 26 . 47 43 . . . 27 . . . 25 89 . 4 . 23 . . 174 116 . . . Explosions 942 | . . . . 46 . 8 . . 55 . . . 16 . . . 7 . . 43 . . 11 103 36 . 81 . 74 . . 82 . . 380 . Melee 189 | . . . . 3 . . . . . . . . . . . . . . . . . . . . . . . . . 186 . . . . . . Knockbacks 17 | . . . . 1 . 1 . . . . . . . . . . . . . . . . . . . . 6 . 7 . . 2 . . . . Impact 2 | . . . . 1 . 1 . . . . . . . . . . . . . . . . . . . . . . . . . . . . . . Kinetic 15 | . . . . . . . . . . . . . . . . . . . . . . . . . . . 6 . 7 . . 2 . . . . Secondary . | . . . . . . . . . . . . . . . . . . . . . . . . . . . . . . . . . . . . . Self-Inflicted Damage 720 | . . . . 19 . 39 . . 155 . . . . . . . . . . 89 . . . . . . 62 . . . . 41 . . 315 . Shots 25 | . . . . 1 . 1 . . 6 . . . . . . . . . . 4 . . . . . . 1 . . . . 1 . . 11 . Rammed 13 | . . 2 . 5 . 4 . 1 . . . . . . . . . . . 1 . . . . . . . . . . . . . . . . Targets Rammed 16 | . 1 3 . 5 . 4 . 1 . . . . . . . . . . . 1 . . . . 1 . . . . . . . . . . . Kicked 2 | . 1 1 . . . . . . . . . . . . . . . . . . . . . . . . . . . . . . . . . . Crushed 1 | . . . . . . . . . . . . . . . . . . . . . . . . . 1 . . . . . . . . . . . Highest Temperature 493 | . 2 . 9 . . . 180 330 214 271 191 281 445 479 360 292 141 75 318 493 24 . 96 . 81 90 199 191 310 . 174 269 416 34 97 . Average Temperature 96 | . 2 . 6 . . . 52 82 48 95 89 93 105 236 183 106 28 45 164 130 16 . 44 . 46 64 78 63 142 . 78 73 163 22 32 . Received Heat Transfer 3246 | . 81 . 266 . . 81 180 214 234 66 . 102 210 . . 432 . . . 267 57 12 4 6 8 . 61 85 427 . 18 237 63 . 126 9 Effects 20 | . . . . . . . . 2 . . . 1 1 2 1 . . . . 6 . . . . . . . . 1 . . . 6 . . . Shutdowns 5 | . . . . . . . . . . . . . 1 1 . . . . . 2 . . . . . . . . . . . . 1 . . . Energy Bleed 4 | . . . . . . . . 2 . . . 1 . . . . . . . 1 . . . . . . . . . . . . . . . . Interference 3 | . . . . . . . . . . . . . . . . . . . . 3 . . . . . . . . . . . . . . . . Short Circuit 2 | . . . . . . . . . . . . . . . . . . . . . . . . . . . . . 1 . . . 1 . . . Damage (minor) 2 | . . . . . . . . . . . . . . 1 1 . . . . . . . . . . . . . . . . . . . . . Damage (major) 4 | . . . . . . . . . . . . . . . . . . . . . . . . . . . . . . . . . 4 . . . Siege Activations 7 | . . . . . . . . . . . . . . . . . . . . 2 . . . . . . . . . . . . 3 . 2 . Total Turns 72 | . . . . . . . . . . . . . . . . . . . . 12 . . . . . . . . . . . . 35 . 25 . Longest Duration 26 | . . . . . . . . . . . . . . . . . . . . 8 . . . . . . . . . . . . 26 . 17 . Robots Corrupted 16 | . . . . . . . . . . . . . . . . . 8 . . . 1 . . . . . . . . . . 1 1 1 4 . Combat Hostiles 14 | . . . . . . . . . . . . . . . . . 8 . . . 1 . . . . . . . . . . 1 . . 4 . Parts Fried 26 | . . . . . . . . . 3 . . . . . . . 9 . . . 1 . . . . . . . . . . 1 5 2 5 . Impact Corruptions 1 | . . . . 1 . . . . . . . . . . . . . . . . . . . . . . . . . . . . . . . . Robots Melted 15 | . . . . . . . . . . . . . 5 . . 2 . . 2 3 . . . . . . . . . . . 2 1 . . . Combat Hostiles 12 | . . . . . . . . . . . . . 3 . . 1 . . 2 3 . . . . . . . . . . . 2 1 . . . Parts Melted 66 | . . . . . . . . . . . . . 14 . 1 15 . 2 7 12 . . . . 1 . 1 . . . . 6 7 . . . Heat Transferred 23963 | . . . . . . . . . 300 . . 37 3427 909 274 5791 . 112 1744 3229 74 . . 76 2525 . 650 100 . . . 1849 2257 50 300 259 Parts Sabotaged . | . . . . . . . . . . . . . . . . . . . . . . . . . . . . . . . . . . . . . Parts Stolen . | . . . . . . . . . . . . . . . . . . . . . . . . . . . . . . . . . . . . . Parts Stripped . | . . . . . . . . . . . . . . . . . . . . . . . . . . . . . . . . . . . . . Power Chain Reactions 10 | . . . . . . . . . 5 . . . . . . . . . . . . . . . . . . . . . . . 2 . 3 . Missiles Intercepted . | . . . . . . . . . . . . . . . . . . . . . . . . . . . . . . . . . . . . . Alert | -11 -10 -10 -9 -9 -9 -8 -8 -7 -7 -7 -7 -6 -6 -6 -6 -6 -6 -5 -5 -5 -5 -5 -5 -4 -4 -4 -4 -4 -4 -4 -3 -3 -3 -2 -2 -1 ------- Run | Jun Mat Min Mat Min Exi Min Mat Fac Low Low Dat Pro Fac Was Fac Ext Cet Fac Was Fac Upp Upp War Pro Fac Was Fac Upp Upp Zhi Pro Res Qua Res Tes Acc Peak Influence 800 | . 212 38 228 262 . 83 307 526 . . . . 309 82 140 426 413 239 83 697 . . . . 759 239 608 . . . . 800 725 372 768 488 Initial 450 | . . 38 . 67 . . 31 95 . . . . 15 82 57 68 222 219 83 . . . . . 217 234 167 . . . . 51 450 372 96 444 Average 214 | . 61 15 114 73 . 50 143 217 . . . . 146 82 101 125 308 223 19 178 . . . . 544 235 304 . . . . 315 536 292 292 450 Maximum Alert Level 3 | . 1 . 1 1 . . 1 2 . . . . 1 . . 2 2 1 . 2 . . . . 3 1 2 . . . . 3 3 1 3 2 Low Security (%) 58 | 100 91 100 93 81 . 100 84 57 . . . . 68 100 100 74 . . 100 58 . . . . . . 20 . . . . 38 . 38 53 . Level 1 22 | . 8 . 6 18 . . 15 21 . . . . 31 . . 23 79 100 . 32 . . . . 27 100 46 . . . . 36 . 61 24 . Level 2 17 | . . . . . . . . 21 . . . . . . . 1 20 . . 9 . . . . 52 . 33 . . . . 21 97 . 10 100 Level 3 1 | . . . . . . . . . . . . . . . . . . . . . . . . . 20 . . . . . . 3 2 . 12 . Level 4 . | . . . . . . . . . . . . . . . . . . . . . . . . . . . . . . . . . . . . . Level 5 . | . . . . . . . . . . . . . . . . . . . . . . . . . . . . . . . . . . . . . High Security . | . . . . . . . . . . . . . . . . . . . . . . . . . . . . . . . . . . . . . Max Security . | . . . . . . . . . . . . . . . . . . . . . . . . . . . . . . . . . . . . . Squads Dispatched 65 | . 3 . 1 . . . 1 12 . . . . 7 . 1 1 . . . 4 . . . . 3 . 3 . 1 . . 10 5 2 11 . Investigation 6 | . 1 . . . . . . 1 . . . . . . 1 . . . . . . . . . . . 1 . . . . . 1 1 . . Extermination 21 | . . . . . . . . 6 . . . . 3 . . . . . . 2 . . . . 2 . . . . . . 4 3 . 1 . Reinforcement 25 | . 2 . 1 . . . 1 1 . . . . 4 . . 1 . . . 2 . . . . . . . . . . . 6 1 1 5 . Assault 4 | . . . . . . . . 1 . . . . . . . . . . . . . . . . 1 . . . 1 . . . . . 1 . Garrison 9 | . . . . . . . . 3 . . . . . . . . . . . . . . . . . . 2 . . . . . . . 4 . Intercept . | . . . . . . . . . . . . . . . . . . . . . . . . . . . . . . . . . . . . . Searches Triggered . | . . . . . . . . . . . . . . . . . . . . . . . . . . . . . . . . . . . . . Data Miner Redirects 4 | . . . . . . . . . . . . . 2 . . . . . . . . . . . . . 1 . . . . . 1 . . . Construction Impeded 3 | . . . . . . . . . . . . . 1 . . . . . . 1 . . . . . . . . . . . . . . 1 . Haulers Reinforced 1 | . . . . . . . . . . . . . 1 . . . . . . . . . . . . . . . . . . . . . . . Active Scanning Responses . | . . . . . . . . . . . . . . . . . . . . . . . . . . . . . . . . . . . . . Cargo Convoy Interrupts 1 | . . . . . . . . . . . . . 1 . . . . . . . . . . . . . . . . . . . . . . . Stealth | -11 -10 -10 -9 -9 -9 -8 -8 -7 -7 -7 -7 -6 -6 -6 -6 -6 -6 -5 -5 -5 -5 -5 -5 -4 -4 -4 -4 -4 -4 -4 -3 -3 -3 -2 -2 -1 --------- Run | Jun Mat Min Mat Min Exi Min Mat Fac Low Low Dat Pro Fac Was Fac Ext Cet Fac Was Fac Upp Upp War Pro Fac Was Fac Upp Upp Zhi Pro Res Qua Res Tes Acc Distress Signals 25 | . . . 3 . . . 2 1 . . . . . . . 4 2 . . . . . 2 . . . . . . . . 3 1 7 . . Communications Jammed 3 | . . . . . . . . . . . . . . . . . . . . . . . . . . . . . . . . 3 . . . . Distress Signals 3 | . . . . . . . . . . . . . . . . . . . . . . . . . . . . . . . . 3 . . . . Times Spotted 500 | . 21 . 26 9 . 3 22 41 18 5 . 9 18 1 1 37 7 1 7 31 4 2 27 11 24 6 12 3 13 . 3 63 25 4 37 9 Peak Tracking Total 9 | . 5 . 5 4 . 3 3 5 9 2 . 4 5 1 1 5 5 1 4 8 3 1 9 5 5 6 3 3 7 . 3 7 4 4 7 3 Tactical Retreats 17 | . . . . 1 . . . 2 . . . . 1 . . . 1 . 1 2 . 2 . . . . 1 . . . . 3 2 . . 1 Traps | -11 -10 -10 -9 -9 -9 -8 -8 -7 -7 -7 -7 -6 -6 -6 -6 -6 -6 -5 -5 -5 -5 -5 -5 -4 -4 -4 -4 -4 -4 -4 -3 -3 -3 -2 -2 -1 ------- Run | Jun Mat Min Mat Min Exi Min Mat Fac Low Low Dat Pro Fac Was Fac Ext Cet Fac Was Fac Upp Upp War Pro Fac Was Fac Upp Upp Zhi Pro Res Qua Res Tes Acc Traps Triggered 19 | . 1 2 . . . . . 2 . . . . 3 . 1 3 . 1 . 2 . . . . 2 . 1 . . . . . . . 1 . Indirectly . | . . . . . . . . . . . . . . . . . . . . . . . . . . . . . . . . . . . . . Trap Hack Attempts . | . . . . . . . . . . . . . . . . . . . . . . . . . . . . . . . . . . . . . Triggered . | . . . . . . . . . . . . . . . . . . . . . . . . . . . . . . . . . . . . . Disarmed . | . . . . . . . . . . . . . . . . . . . . . . . . . . . . . . . . . . . . . Reprogrammed . | . . . . . . . . . . . . . . . . . . . . . . . . . . . . . . . . . . . . . Reused 1 | . . . . . . . . . . . . . 1 . . . . . . . . . . . . . . . . . . . . . . . Traps Extracted . | . . . . . . . . . . . . . . . . . . . . . . . . . . . . . . . . . . . . . Installed 4 | . . . . . . . . . . . . . 4 . . . . . . . . . . . . . . . . . . . . . . . Triggered 19 | . . . . . . . . . . . . 2 2 . . . . . . . 2 1 11 . . . . 1 . . . . . . . . Most Traps Carried 5 | . . 5 5 5 5 5 5 5 5 5 5 5 5 . . . . . . . . . . . . . . . . . . . . . . . Machines | -11 -10 -10 -9 -9 -9 -8 -8 -7 -7 -7 -7 -6 -6 -6 -6 -6 -6 -5 -5 -5 -5 -5 -5 -4 -4 -4 -4 -4 -4 -4 -3 -3 -3 -2 -2 -1 ---------- Run | Jun Mat Min Mat Min Exi Min Mat Fac Low Low Dat Pro Fac Was Fac Ext Cet Fac Was Fac Upp Upp War Pro Fac Was Fac Upp Upp Zhi Pro Res Qua Res Tes Acc Machines Disabled 48 | . . . 1 . . . . . 1 . . . 3 . . 4 1 . . 7 . . . . 9 . 5 . 1 . . 2 9 . 4 1 Max in Single Turn 4 | . . . 1 . . . . . 1 . . . 1 . . 2 1 . . 2 . . . . 4 . 3 . 1 . . 1 2 . 1 1 Garrison Access 2 | . . . . . . . . . . . . . . . . . . . . 1 . . . . 1 . . . . . . . . . . . Energy Cycler 2 | . . . . . . . . . . . . . . . . 1 . . . . . . . . . . . . . . . . . . . 1 Machines Repaired . | . . . . . . . . . . . . . . . . . . . . . . . . . . . . . . . . . . . . . Machines Sabotaged . | . . . . . . . . . . . . . . . . . . . . . . . . . . . . . . . . . . . . . Overloaded Fab Kills . | . . . . . . . . . . . . . . . . . . . . . . . . . . . . . . . . . . . . . Hacking | -11 -10 -10 -9 -9 -9 -8 -8 -7 -7 -7 -7 -6 -6 -6 -6 -6 -6 -5 -5 -5 -5 -5 -5 -4 -4 -4 -4 -4 -4 -4 -3 -3 -3 -2 -2 -1 --------- Run | Jun Mat Min Mat Min Exi Min Mat Fac Low Low Dat Pro Fac Was Fac Ext Cet Fac Was Fac Upp Upp War Pro Fac Was Fac Upp Upp Zhi Pro Res Qua Res Tes Acc Machines Accessed 44 | . 3 1 1 1 1 . 1 . 1 1 3 . 1 . 4 3 . 1 . 2 . . 5 1 2 . 2 . 1 4 . 2 1 1 1 . Terminals 22 | . 3 . . . . . 1 . . . . . 1 . 4 3 . 1 . 1 . . . 1 1 . 2 . . . . 2 . 1 1 . Fabricators . | . . . . . . . . . . . . . . . . . . . . . . . . . . . . . . . . . . . . . Repair Stations . | . . . . . . . . . . . . . . . . . . . . . . . . . . . . . . . . . . . . . Recycling Units . | . . . . . . . . . . . . . . . . . . . . . . . . . . . . . . . . . . . . . Scanalyzers 1 | . . . 1 . . . . . . . . . . . . . . . . . . . . . . . . . . . . . . . . . Garrison Access 3 | . . . . . . . . . . . . . . . . . . . . 1 . . . . 1 . . . . . . . 1 . . . Total Hacks 135 | . 7 1 7 1 1 . 6 . 1 1 24 . 2 . 7 8 . 2 . 3 . . 22 2 5 . 5 . 1 17 . 2 3 3 4 . Successful 96 | . 1 1 7 1 1 . 2 . 1 1 24 . 1 . 4 4 . 1 . 1 . . 22 2 1 . . . 1 17 . 1 . . 2 . Failed 38 | . 5 . . . . . 4 . . . . . 1 . 3 4 . 1 . 2 . . . . 4 . 5 . . . . 1 3 3 2 . Catastrophic 4 | . . . . . . . . . . . . . . . . . . . . 1 . . . . . . . . . . . 1 1 1 . . Database Lockouts 1 | . 1 . . . . . . . . . . . . . . . . . . . . . . . . . . . . . . . . . . . Manual 39 | . 7 . . . . . 7 . . . . . 2 . 2 7 . . . 1 . . 1 . 2 . 2 . . . . 1 1 3 3 . Terminals 51 | . 7 . . . . . 6 . . . . . 2 . 7 8 . 2 . 1 . . . 2 2 . 5 . . . . 2 . 3 4 . Fabricators . | . . . . . . . . . . . . . . . . . . . . . . . . . . . . . . . . . . . . . Repair Stations . | . . . . . . . . . . . . . . . . . . . . . . . . . . . . . . . . . . . . . Recycling Units . | . . . . . . . . . . . . . . . . . . . . . . . . . . . . . . . . . . . . . Scanalyzers 7 | . . . 7 . . . . . . . . . . . . . . . . . . . . . . . . . . . . . . . . . Garrison Access 8 | . . . . . . . . . . . . . . . . . . . . 2 . . . . 3 . . . . . . . 3 . . . Terminal Hacks 80 | . 1 1 . 1 1 . . . 1 1 24 . 1 . 2 3 . 1 . . . . 22 2 . . . . 1 17 . 1 . . . . Record 25 | . . . . . 1 . . . . . 6 . . . . . . . . . . . 11 2 . . . . . 5 . . . . . . Part Schematic 15 | . . . . . . . . . . . 11 . . . . . . . . . . . . . . . . . . 4 . . . . . . Robot Schematic 4 | . . . . . . . . . . . 4 . . . . . . . . . . . . . . . . . . . . . . . . . Robot Analysis 5 | . 1 . . . . . . . . . . . . . . . . . . . . . . . . . . . . 4 . . . . . . Prototype ID Bank 18 | . . . . . . . . . . . 3 . . . . . . . . . . . 11 . . . . . . 4 . . . . . . Open Door 6 | . . 1 . 1 . . . . 1 1 . . . . 1 . . . . . . . . . . . . . 1 . . . . . . . Branch Access Points 3 | . . . . . . . . . . . . . . . 1 . . 1 . . . . . . . . . . . . . 1 . . . . Alert Level 2 | . . . . . . . . . . . . . 1 . . 1 . . . . . . . . . . . . . . . . . . . . Unreport Threat 2 | . . . . . . . . . . . . . . . . 2 . . . . . . . . . . . . . . . . . . . . Fabricator Hacks . | . . . . . . . . . . . . . . . . . . . . . . . . . . . . . . . . . . . . . Repair Station Hacks . | . . . . . . . . . . . . . . . . . . . . . . . . . . . . . . . . . . . . . Recycling Unit Hacks . | . . . . . . . . . . . . . . . . . . . . . . . . . . . . . . . . . . . . . Scanalyzer 7 | . . . 7 . . . . . . . . . . . . . . . . . . . . . . . . . . . . . . . . . Insert Component 3 | . . . 3 . . . . . . . . . . . . . . . . . . . . . . . . . . . . . . . . . Analyze 4 | . . . 4 . . . . . . . . . . . . . . . . . . . . . . . . . . . . . . . . . Garrison Access Hacks 2 | . . . . . . . . . . . . . . . . . . . . 1 . . . . 1 . . . . . . . . . . . Seal Access 2 | . . . . . . . . . . . . . . . . . . . . 1 . . . . 1 . . . . . . . . . . . Unauthorized Hacks 7 | . . . . . . . 2 . . . . . . . 2 1 . . . . . . . . . . . . . . . . . . 2 . Terminals 7 | . . . . . . . 2 . . . . . . . 2 1 . . . . . . . . . . . . . . . . . . 2 . Botnet 4 | . . . . . . . 1 . . . . . . . 1 1 . . . . . . . . . . . . . . . . . . 1 . Operators 3 | . . . . . . . 1 . . . . . . . 1 . . . . . . . . . . . . . . . . . . . 1 . Fabricators . | . . . . . . . . . . . . . . . . . . . . . . . . . . . . . . . . . . . . . Repair Stations . | . . . . . . . . . . . . . . . . . . . . . . . . . . . . . . . . . . . . . Recycling Units . | . . . . . . . . . . . . . . . . . . . . . . . . . . . . . . . . . . . . . Scanalyzers . | . . . . . . . . . . . . . . . . . . . . . . . . . . . . . . . . . . . . . Garrison Access . | . . . . . . . . . . . . . . . . . . . . . . . . . . . . . . . . . . . . . Data Cores Recovered 4 | . 1 . . . . . . . . . . . . . . 1 . . . . . . . . 1 . . . . . . . 1 . . . Used . | . . . . . . . . . . . . . . . . . . . . . . . . . . . . . . . . . . . . . Hacking Detections 21 | . 2 . 1 . . . 1 . . . . . 1 . 3 2 . 1 . 1 . . . . 2 . 2 . . . . 2 1 1 1 . Full Trace Events 3 | . . . . . . . . . . . . . . . . . . . . . . . . . . . 1 . . . . . 1 1 . . Feedback Events . | . . . . . . . . . . . . . . . . . . . . . . . . . . . . . . . . . . . . . Feedback Blocked . | . . . . . . . . . . . . . . . . . . . . . . . . . . . . . . . . . . . . . Robot Schematics Acquired 5 | . . . . . . . . . . . 4 . . . . . . . . . . . . . . . . . . . . . . . 1 . Robots Built . | . . . . . . . . . . . . . . . . . . . . . . . . . . . . . . . . . . . . . Authchips . | . . . . . . . . . . . . . . . . . . . . . . . . . . . . . . . . . . . . . Time . | . . . . . . . . . . . . . . . . . . . . . . . . . . . . . . . . . . . . . Total Robot Build Rating . | . . . . . . . . . . . . . . . . . . . . . . . . . . . . . . . . . . . . . Part Schematics Acquired 20 | . . . 3 . . . . . . . 11 . . . . . . . . . . . . . . . . . . 4 . . . . 2 . Parts Built . | . . . . . . . . . . . . . . . . . . . . . . . . . . . . . . . . . . . . . Authchips . | . . . . . . . . . . . . . . . . . . . . . . . . . . . . . . . . . . . . . Time . | . . . . . . . . . . . . . . . . . . . . . . . . . . . . . . . . . . . . . Total Part Build Rating . | . . . . . . . . . . . . . . . . . . . . . . . . . . . . . . . . . . . . . Parts Repaired . | . . . . . . . . . . . . . . . . . . . . . . . . . . . . . . . . . . . . . Time . | . . . . . . . . . . . . . . . . . . . . . . . . . . . . . . . . . . . . . Parts Recycled . | . . . . . . . . . . . . . . . . . . . . . . . . . . . . . . . . . . . . . Recycled Matter . | . . . . . . . . . . . . . . . . . . . . . . . . . . . . . . . . . . . . . Retrieved Matter . | . . . . . . . . . . . . . . . . . . . . . . . . . . . . . . . . . . . . . Retrieved Components . | . . . . . . . . . . . . . . . . . . . . . . . . . . . . . . . . . . . . . Parts Scanalyzed 3 | . . . 3 . . . . . . . . . . . . . . . . . . . . . . . . . . . . . . . . . Part Schematics Acquired 3 | . . . 3 . . . . . . . . . . . . . . . . . . . . . . . . . . . . . . . . . Parts Damaged . | . . . . . . . . . . . . . . . . . . . . . . . . . . . . . . . . . . . . . Bothacking | -11 -10 -10 -9 -9 -9 -8 -8 -7 -7 -7 -7 -6 -6 -6 -6 -6 -6 -5 -5 -5 -5 -5 -5 -4 -4 -4 -4 -4 -4 -4 -3 -3 -3 -2 -2 -1 ------------ Run | Jun Mat Min Mat Min Exi Min Mat Fac Low Low Dat Pro Fac Was Fac Ext Cet Fac Was Fac Upp Upp War Pro Fac Was Fac Upp Upp Zhi Pro Res Qua Res Tes Acc Used RIF Installer . | . . . . . . . . . . . . . . . . . . . . . . . . . . . . . . . . . . . . . Robots Hacked . | . . . . . . . . . . . . . . . . . . . . . . . . . . . . . . . . . . . . . Non-combat . | . . . . . . . . . . . . . . . . . . . . . . . . . . . . . . . . . . . . . Combat . | . . . . . . . . . . . . . . . . . . . . . . . . . . . . . . . . . . . . . Robot Hacks Applied . | . . . . . . . . . . . . . . . . . . . . . . . . . . . . . . . . . . . . . Relay Couplers Released 7 | . . . . . . . . . . . . . 4 . . . . . . . . . . . . . . . . . . . . . 3 . Programmers 7 | . . . . . . . . . . . . . 4 . . . . . . . . . . . . . . . . . . . . . 3 . Fabnet Peak Effective % . | . . . . . . . . . . . . . . . . . . . . . . . . . . . . . . . . . . . . . Robots Rewired 22 | . . . . . . . . . 2 . . . . . . 14 . . . . . . 5 . . . . . 1 . . . . . . . Allies Hacked 4 | . . . . . . . . . . . . . . . . . . . . 2 . . . . 2 . . . . . . . . . . . Hacks Repelled . | . . . . . . . . . . . . . . . . . . . . . . . . . . . . . . . . . . . . . Allies | -11 -10 -10 -9 -9 -9 -8 -8 -7 -7 -7 -7 -6 -6 -6 -6 -6 -6 -5 -5 -5 -5 -5 -5 -4 -4 -4 -4 -4 -4 -4 -3 -3 -3 -2 -2 -1 -------- Run | Jun Mat Min Mat Min Exi Min Mat Fac Low Low Dat Pro Fac Was Fac Ext Cet Fac Was Fac Upp Upp War Pro Fac Was Fac Upp Upp Zhi Pro Res Qua Res Tes Acc Total Allies 48 | . . 3 . . . . . . 2 . . 1 . . . 17 . . 19 . . . 5 . . . . . 1 . . . . . . . Largest Group 18 | . . 3 3 . . . . . 2 . . 1 1 . . 8 4 2 18 18 . . 5 4 3 . . . 1 1 1 1 . . . . Highest-Rated Group 656 | . . 40 40 . . . . . 50 . . 96 96 . . 249 123 45 656 654 . . 261 212 163 . . . 30 30 30 30 . . . . Highest-Rated Ally 96 | . . 16 16 . . . . . 30 . . 96 96 . . 39 39 25 50 50 . . 65 65 65 . . . 30 30 30 30 . . . . Total Orders 21 | . . . . . . . . . . . . . . . . . . . . . . . 2 . . . . . . . . 16 3 . . . STAY 1 | . . . . . . . . . . . . . . . . . . . . . . . 1 . . . . . . . . . . . . . FOLLOW 1 | . . . . . . . . . . . . . . . . . . . . . . . 1 . . . . . . . . . . . . . RETURN 19 | . . . . . . . . . . . . . . . . . . . . . . . . . . . . . . . . 16 3 . . . Ally Attacks 432 | . . . 16 . . . . . 6 . . 16 26 . . 101 2 . 51 84 . . 56 5 17 . . . . . 1 45 6 . . . Total Damage 16375 | . . . 138 . . . . . 146 . . 369 877 . . 1696 22 . 1737 2741 . . 2159 144 686 . . . . . 35 4985 640 . . . Kills 101 | . . . 4 . . . . . 1 . . 3 10 . . 17 . . 4 15 . . 11 1 3 . . . . . . 29 3 . . . Allies Corrupted 4 | . . . . . . . . . . . . . . . . . . . . 2 . . . . 1 . . . . . . . 1 . . . Allies Melted 4 | . . . . . . . . . . . . . . . . 2 . . . 1 . . . . 1 . . . . . . . . . . . Intel | -11 -10 -10 -9 -9 -9 -8 -8 -7 -7 -7 -7 -6 -6 -6 -6 -6 -6 -5 -5 -5 -5 -5 -5 -4 -4 -4 -4 -4 -4 -4 -3 -3 -3 -2 -2 -1 ------- Run | Jun Mat Min Mat Min Exi Min Mat Fac Low Low Dat Pro Fac Was Fac Ext Cet Fac Was Fac Upp Upp War Pro Fac Was Fac Upp Upp Zhi Pro Res Qua Res Tes Acc Robot Analysis Total 5 | . 1 . . . . . . . . . . . . . . . . . . . . . . . . . . . . 4 . . . . . . Derelict Logs Recovered 8 | . . 1 . . . . . . 1 1 . 1 . . . . . . . . . . . 2 . . . 2 . . . . . . . . Drone Launches 19 | . . . . . . . . . . . . . . . . . . . . . . . . . . . . . . . . 16 3 . . . Drone Recoveries 18 | . . . . . . . . . . . . . . . . . . . . . . . . . . . . . . . . 16 2 . . . Exploration | -11 -10 -10 -9 -9 -9 -8 -8 -7 -7 -7 -7 -6 -6 -6 -6 -6 -6 -5 -5 -5 -5 -5 -5 -4 -4 -4 -4 -4 -4 -4 -3 -3 -3 -2 -2 -1 ------------- Run | Jun Mat Min Mat Min Exi Min Mat Fac Low Low Dat Pro Fac Was Fac Ext Cet Fac Was Fac Upp Upp War Pro Fac Was Fac Upp Upp Zhi Pro Res Qua Res Tes Acc Turns Passed 35079 | 9 1132 968 1142 1567 456 291 863 2786 1599 2633 187 1929 1664 344 274 1428 253 105 772 1561 1171 1003 1600 677 1297 122 426 495 626 250 365 2192 1458 649 560 225 Spaces Moved 15670 | 8 522 575 397 628 190 106 258 1016 612 1052 78 725 692 246 215 769 116 73 442 592 385 409 756 268 543 95 235 373 397 176 263 1205 618 313 208 114 Core 65 | . . . . . . . . . . . . . . . . . . . 65 . . . . . . . . . . . . . . . . . Treads 8547 | . . 489 397 628 190 106 258 1016 612 1052 78 725 213 . . . . . 143 592 385 409 756 268 178 . . . . . . . 1 . 51 . Legs 616 | 8 522 86 . . . . . . . . . . . . . . . . . . . . . . . . . . . . . . . . . . Wheels 6364 | . . . . . . . . . . . . . 479 246 215 769 116 73 156 . . . . . 365 95 235 373 397 176 263 1205 617 313 157 114 Hover 78 | . . . . . . . . . . . . . . . . . . . 78 . . . . . . . . . . . . . . . . . Flight . | . . . . . . . . . . . . . . . . . . . . . . . . . . . . . . . . . . . . . Fastest Speed 50 | 120 120 160 160 240 240 240 240 240 240 240 240 240 120 120 120 120 110 125 50 166 166 245 165 245 129 129 129 129 129 110 130 129 170 190 146 146 Average Speed 194 | 120 182 164 210 240 240 240 240 240 240 240 240 240 199 120 120 141 139 125 157 224 242 245 193 245 197 129 130 129 129 118 130 149 185 195 197 167 Slowest Speed 360 | 120 190 190 240 240 240 240 240 320 320 240 240 240 320 120 120 260 245 125 300 320 246 245 245 245 245 129 147 129 130 130 130 190 360 204 260 230 Overloaded Moves . | . . . . . . . . . . . . . . . . . . . . . . . . . . . . . . . . . . . . . Propulsion Burnouts . | . . . . . . . . . . . . . . . . . . . . . . . . . . . . . . . . . . . . . Robots Hopped . | . . . . . . . . . . . . . . . . . . . . . . . . . . . . . . . . . . . . . Cave-ins Triggered 1 | . . . . . . . . . . . . . . . . . . . . . . . . . . . . . . . . . . 1 . . Teleports 4 | . . . . . . . . . . . . . . . . . . . . . . . . . . . . . . . . 1 . . 1 2 Exploration Rate (%) 52 | 2 95 96 42 99 51 38 24 30 71 94 69 81 23 94 9 87 62 3 96 19 63 58 84 49 18 80 5 67 56 60 41 39 67 15 36 3 Regions Visited 36 Branch Regions 20 Pre-discovered Areas 8 | . . 1 . . 1 . . . . . 1 1 . . . . . . . . . . . . . . . 1 . 3 . . . . . . Known Exits Taken 18 | . . . 1 . . 1 . 1 1 1 1 1 . . 1 . . . . 1 . . . . . . 1 1 1 1 1 1 1 1 1 . Unknown Exits Taken 12 | 1 1 1 . 1 1 . 1 . . . . . . . . 1 1 . . . 1 1 1 1 . . . . . . . . . . . . Scrap Searched 17 | . . 2 . 2 . . . . . 4 . 1 . . . . . . . . 3 1 . 1 . . . 1 . . 2 . . . . . Spaces Dug 121 | . . . . . . . 1 . 10 . . . 3 . . . . . . . 17 . 2 14 2 . 36 . . . . 24 7 1 3 1 Terrain Destroyed 1187 | . . . . 40 . 41 1 . 43 43 . 2 27 . 1 41 . . . 16 30 . 91 169 60 . 72 34 149 . 29 74 49 1 167 7 Melee 3 | . . . . . . . 1 . . . . . . . . . . . . . . . . . . . . . . . . . . . 1 1 Projectile 198 | . . . . . . . . . . 2 . 2 12 . 1 22 . . . 4 . . 4 4 35 . 39 4 6 . 2 24 33 1 3 . AOE 986 | . . . . 40 . 41 . . 43 41 . . 15 . . 19 . . . 12 30 . 87 165 25 . 33 30 143 . 27 50 16 . 163 6 Terrain Rammed . | . . . . . . . . . . . . . . . . . . . . . . . . . . . . . . . . . . . . . Walls Destroyed . | . . . . . . . . . . . . . . . . . . . . . . . . . . . . . . . . . . . . . Machines Disabled . | . . . . . . . . . . . . . . . . . . . . . . . . . . . . . . . . . . . . . Actions | -11 -10 -10 -9 -9 -9 -8 -8 -7 -7 -7 -7 -6 -6 -6 -6 -6 -6 -5 -5 -5 -5 -5 -5 -4 -4 -4 -4 -4 -4 -4 -3 -3 -3 -2 -2 -1 --------- Run | Jun Mat Min Mat Min Exi Min Mat Fac Low Low Dat Pro Fac Was Fac Ext Cet Fac Was Fac Upp Upp War Pro Fac Was Fac Upp Upp Zhi Pro Res Qua Res Tes Acc Total 18753 | 7 607 597 548 659 191 123 415 1258 704 1133 80 879 895 279 223 967 194 85 495 753 609 411 892 278 674 94 296 379 465 205 280 1488 808 344 305 133 Wait 1139 | . 25 6 5 2 . . 46 83 12 46 . 115 73 15 2 25 60 . 19 57 207 2 44 1 49 . 25 . 17 . 7 108 50 4 32 2 Move 15637 | 7 521 574 396 627 189 105 257 1015 611 1051 77 724 692 245 214 768 115 73 441 591 384 408 755 267 543 94 234 372 396 175 262 1204 617 312 207 114 Hop . | . . . . . . . . . . . . . . . . . . . . . . . . . . . . . . . . . . . . . Pick Up 241 | . 9 4 34 3 2 . 14 17 8 4 . 4 21 1 1 13 3 2 16 20 2 1 9 . 6 . . . 3 2 5 19 16 1 1 . Fast Attach 137 | . 1 . . . . . 8 5 1 . . . 21 4 . 6 . . 5 7 1 . 7 . 3 . 7 . 2 3 1 27 17 8 2 1 Attach 158 | . . 2 10 6 . 2 4 10 7 4 . 4 6 . . 10 . 7 1 11 2 . 1 . 6 . 4 1 5 4 2 19 15 2 10 3 Detach 42 | . . . . . . . . . . 2 3 . 2 . . . . . . 4 . . 3 . . . 1 1 1 7 . 13 2 3 . . Swap 100 | . 1 2 3 2 . 2 7 11 12 5 . 7 7 1 2 5 4 1 . 8 2 . 3 . 5 . 1 . 2 . . 1 3 2 1 . Drop 205 | . 1 6 18 1 . . 19 15 2 . . 2 29 5 1 9 . 1 3 18 1 . 24 . 6 . 1 . 1 . . 21 15 4 2 . Fire 911 | . 48 . 82 13 . 10 59 101 29 21 . 23 40 7 3 62 12 1 10 36 10 . 12 10 47 . 23 5 29 . 3 76 73 8 46 12 Melee 20 | . . . . . . . 1 . . . . . . . . . . . . . . . . . . . . . . 14 . . . . 4 1 Ram . | . . . . . . . . . . . . . . . . . . . . . . . . . . . . . . . . . . . . . Kick 2 | . 1 1 . . . . . . . . . . . . . . . . . . . . . . . . . . . . . . . . . . Crush 14 | . . 2 . 5 . 4 . 1 . . . . . . . . . . . 1 . . . . 1 . . . . . . . . . . . Escape Stasis 32 | . . . . . . . . . . . . . . . . 24 . . . . . . . . 8 . . . . . . . . . . . Rewire 111 | . . . . . . . . . 22 . . . . 1 . 45 . . . . . . 34 . . . . . 9 . . . . . . . Trap 4 | . . . . . . . . . . . . . 4 . . . . . . . . . . . . . . . . . . . . . . . Miscellaneous . | . . . . . . . . . . . . . . . . . . . . . . . . . . . . . . . . . . . . . Route ------- -11/Junkyard -10/Materials (discovered 4 exits: *Mat x3 / *Min) -10/Mines (discovered 2 exits: *Mat x2) -9/Materials (discovered 4 exits: *Mat x2 / *Min / [*Sto]) -9/Mines (discovered 3 exits: *Mat x2 / *Exi) -9/Exiles -8/Mines -8/Materials -7/Factory (discovered 4 exits: *Fac x3 / *Low) -7/Lower Caves -7/Lower Caves (discovered 2 exits: *Fac / *Dat) -7/Data Miner -6/Proximity Caves -6/Factory -6/Waste -6/Factory (discovered 4 exits: Low x2 / *Ext x2) -6/Extension (discovered 3 exits: *Fac x2 / [*Cet]) -6/Cetus (discovered 2 exits: *Fac / [*Arc]) -5/Factory (discovered 2 exits: Upp x2) -5/Waste -5/Factory -5/Upper Caves -5/Upper Caves (discovered 2 exits: *Fac / *War) -5/Warlord -4/Proximity Caves -4/Factory -4/Waste -4/Factory -4/Upper Caves -4/Upper Caves (discovered 2 exits: *Res / *Zhi) -4/Zhirov -3/Proximity Caves -3/Research (discovered 4 exits: *Res x2 / *Qua x2) -3/Quarantine -2/Research -2/Testing -1/Access History --------- Turn | Location | Event 1 | -11/Junkyard | Discovered new exit (range 2) 10 | -11/Junkyard | Entered Materials 302 | -10/Materials | Build established: Mutant 358 | -10/Materials | Discovered new exit (range 10) 531 | -10/Materials | Discovered new exit (range 15) 613 | -10/Materials | Discovered new exit (range 12) 885 | -10/Materials | Discovered new exit (range 10) 889 | -10/Materials | Central database locked down 1142 | -10/Materials | Entered Mines 1299 | -10/Mines | Met a Derelict who couldn't figure out how to use a Trap Extractor 1379 | -10/Mines | A weapon hastily lodged in a ceiling crevice suddenly fell to the ground 1409 | -10/Mines | Found a hidden stash of uninstalled traps 1709 | -10/Mines | Learned location of Storage (-9) 1767 | -10/Mines | Discovered new exit (range 4) 1855 | -10/Mines | Discovered new exit (range 6) 1948 | -10/Mines | Learned 2 Materials zone layouts 2046 | -10/Mines | Assisted by bots powering up and referring to "LRC-V3" 2110 | -10/Mines | Entered Materials 2110 | -9/Materials | Accompanied by 3 allies 2110 | -9/Materials | Evolved 2 slots: Propulsion x1, Utility x1 2111 | -9/Materials | Identified exit to Mines 2111 | -9/Materials | Identified exit to Materials 2318 | -9/Materials | Discovered exit to Materials (range 13) 2601 | -9/Materials | Discovered new exit (range 8) 3252 | -9/Materials | Entered Mines 3279 | -9/Mines | Received a Rocket Launcher from a helpful Derelict 3902 | -9/Mines | Found the Drone Emporium 3915 | -9/Mines | Found Prototype Device 4179 | -9/Mines | Lost 5 parts (2n2u1w) 4203 | -9/Mines | Destroyed YI-UF0 4687 | -9/Mines | Discovered exit to Materials (range 3) 4701 | -9/Mines | Discovered exit to Materials (range 14) 4809 | -9/Mines | Deemed a non-threat by the Exiles lab entrance 4809 | -9/Mines | Discovered new exit (range 5) 4819 | -9/Mines | Entered Exiles 4879 | -9/Exiles | Met 8R-AWN 4918 | -9/Exiles | Met EX-HEX 4999 | -9/Exiles | Met EX-BIN 5028 | -9/Exiles | Met EX-DEC 5040 | -9/Exiles | Learned location of Zion (-6) 5115 | -9/Exiles | Discovered new exit (range 10) 5275 | -9/Exiles | Entered Mines 5542 | -8/Mines | Discovered exit to Materials (range 11) 5566 | -8/Mines | Entered Materials 5566 | -8/Materials | Evolved 2 slots: Utility x1, Weapon x1 5949 | -8/Materials | Build established: Scavenger-Tank 6314 | -8/Materials | Discovered new exit (range 16) 6429 | -8/Materials | Entered Factory 6429 | -7/Factory | Evolved 2 slots: Propulsion x1, Utility x1 7054 | -7/Factory | Discovered new exit (range 9) 7072 | -7/Factory | Identified exit to Factory 7521 | -7/Factory | Garrison activated, responded to threat 7763 | -7/Factory | Discovered exit to Factory (range 5) 8428 | -7/Factory | Discovered exit to Factory (range 15) 8445 | -7/Factory | Discovered new exit (range 16) 8829 | -7/Factory | First assault squad dispatched 9005 | -7/Factory | Lost 3 parts (3n) 9213 | -7/Factory | Identified exit to Lower Caves 9215 | -7/Factory | Entered Lower Caves 9503 | -7/Lower Caves | Build established: Scavenger-Skirmisher 9516 | -7/Lower Caves | Attracted the attention of an 0b10 outpost 9552 | -7/Lower Caves | System corruption reached 10% 9575 | -7/Lower Caves | Destroyed 9 combat bots 9578 | -7/Lower Caves | Lost 3 parts (1p1n1w) 9944 | -7/Lower Caves | Attracted the attention of an 0b10 checkpoint 10491 | -7/Lower Caves | Lost 4 parts (1p2n1u) 10575 | -7/Lower Caves | Encountered a Warlord checkpoint 10661 | -7/Lower Caves | Learned 4 Factory zone layouts 10714 | -7/Lower Caves | Discovered new exit (range 8) 10752 | -7/Lower Caves | Build established: Scavenger-Gunner 10812 | -7/Lower Caves | Identified exit to Lower Caves 10814 | -7/Lower Caves | Entered another Lower Caves area 11637 | -7/Lower Caves | Build established: Scavenger-Skirmisher 11899 | -7/Lower Caves | Discovered exit to Factory (range 16) 12232 | -7/Lower Caves | Attracted the attention of an 0b10 checkpoint 12409 | -7/Lower Caves | Learned Factory emergency access door positions 12775 | -7/Lower Caves | Encountered a Warlord checkpoint 12978 | -7/Lower Caves | Discovered new exit (range 13) 13004 | -7/Lower Caves | Identified exit to Data Miner 13447 | -7/Lower Caves | Entered Data Miner 13447 | -7/Data Miner | Discovered new exit (range 7) 13497 | -7/Data Miner | Met Data Miner 13545 | -7/Data Miner | Learned location of Section 7 (-3) 13545 | -7/Data Miner | Acquired the access code to Warlord's prototype stash 13579 | -7/Data Miner | Received God Mode back door access code from Data Miner 13631 | -7/Data Miner | Identified exit to Proximity Caves 13634 | -7/Data Miner | Entered Proximity Caves 13947 | -6/Proximity Caves | Build established: Scavenger-Gunner 14022 | -6/Proximity Caves | Escorted by Enhanced Grunt 14028 | -6/Proximity Caves | Attracted the attention of an 0b10 checkpoint 14396 | -6/Proximity Caves | Build established: Scavenger-Skirmisher 15203 | -6/Proximity Caves | Discovered exit to Factory (range 11) 15563 | -6/Proximity Caves | Entered Factory 15563 | -6/Factory | Accompanied by 1 ally 15563 | -6/Factory | Evolved 2 slots: Power x1, Utility x1 15564 | -6/Factory | Identified exit to Lower Caves 16751 | -6/Factory | Build established: Scavenger-Tank 17141 | -6/Factory | Cargo convoy interrupted 17156 | -6/Factory | Incoming assault squad redirected 17169 | -6/Factory | Incoming assault squad redirected 17227 | -6/Factory | Sucked down chute 17227 | -6/Factory | Entered Waste 17227 | -6/Waste | The area was eerily silent 17480 | -6/Waste | A Compactor rumbled back to life 17480 | -6/Waste | Spotted C-40 Crusher 17489 | -6/Waste | Destroyed C-40 Crusher 17520 | -6/Waste | Discovered new exit (range 12) 17569 | -6/Waste | Identified exit to Factory 17571 | -6/Waste | Entered Factory 17637 | -6/Factory | Spotted B-75 Beast 17809 | -6/Factory | Identified exit to Extension 17845 | -6/Factory | Entered Extension 17904 | -6/Extension | Rescued a captive Derelict 17973 | -6/Extension | Energy Cycler disabled 17973 | -6/Extension | Rescued a captive Derelict 17975 | -6/Extension | Rescued a captive Derelict 17982 | -6/Extension | Rescued a captive Derelict 17986 | -6/Extension | Rescued a captive Derelict 18116 | -6/Extension | Build established: Scavenger-Gunner 18252 | -6/Extension | Lost 4 parts (1p3n) 18688 | -6/Extension | Build established: Commander-Gunner 18765 | -6/Extension | Spotted B-75 Beast 18791 | -6/Extension | Allies destroyed B-75 Beast 18799 | -6/Extension | Spotted B-75 Beast 18812 | -6/Extension | Destroyed B-75 Beast 18830 | -6/Extension | Discovered new exit (range 12) 18848 | -6/Extension | Extracted ID and sensor layout for unrecognized location from A7's data core 18857 | -6/Extension | Found Prototype Protection 18860 | -6/Extension | Identified Med. Regenerative Plating 19109 | -6/Extension | Build established: Scavenger-Gunner 19234 | -6/Extension | Discovered new exit (range 10) 19235 | -6/Extension | Discovered new exit (range 6) 19273 | -6/Extension | Entered Cetus 19273 | -6/Cetus | Accompanied by 4 allies 19362 | -6/Cetus | Spotted Cetus Guard 19362 | -6/Cetus | Spotted Cetus Guard 19369 | -6/Cetus | Destroyed Cetus Guard 19369 | -6/Cetus | Spotted Cetus Guard 19369 | -6/Cetus | Spotted Cetus Guard 19373 | -6/Cetus | Destroyed Cetus Guard 19373 | -6/Cetus | Destroyed Cetus Guard 19374 | -6/Cetus | Destroyed Cetus Guard 19435 | -6/Cetus | Discovered new exit (range 15) 19455 | -6/Cetus | Spotted Cetus Guard 19456 | -6/Cetus | Spotted Cetus Guard 19463 | -6/Cetus | Destroyed Cetus Guard 19463 | -6/Cetus | Spotted Cetus Guard 19467 | -6/Cetus | Destroyed Cetus Guard 19467 | -6/Cetus | Destroyed Cetus Guard 19468 | -6/Cetus | Destroyed Cetus Guard 19482 | -6/Cetus | Discovered new exit (range 15) 19494 | -6/Cetus | Lost 3 parts (3n) 19495 | -6/Cetus | Met Revision 17 19526 | -6/Cetus | Entered Factory 19526 | -5/Factory | Accompanied by 2 allies 19526 | -5/Factory | Evolved 2 slots: Utility x1, Weapon x1 19617 | -5/Factory | Identified exit to Upper Caves 19631 | -5/Factory | Sucked down chute 19631 | -5/Factory | Entered Waste 19632 | -5/Waste | Met a frightened Derelict 19658 | -5/Waste | Spotted C-40 Crusher 19676 | -5/Waste | Destroyed C-40 Crusher 19677 | -5/Waste | Spotted C-40 Crusher 19682 | -5/Waste | Spotted C-40 Crusher 19684 | -5/Waste | Spotted C-40 Crusher 19688 | -5/Waste | Destroyed C-40 Crusher 19692 | -5/Waste | Spotted C-40 Crusher 19695 | -5/Waste | 2 allies followed down the chute 19775 | -5/Waste | Spotted C-40 Crusher 19828 | -5/Waste | Crushed by Compactor (1 part destroyed, 2 dropped) 19829 | -5/Waste | Crushed by Compactor (1 part destroyed, 1 dropped) 19832 | -5/Waste | Crushed by Compactor (1 part destroyed, 2 dropped) 19842 | -5/Waste | Discovered new exit (range 16) 19860 | -5/Waste | Crushed by Compactor (1 part destroyed, 1 dropped) 19863 | -5/Waste | Crushed by Compactor (1 part destroyed, 2 dropped) 19876 | -5/Waste | Warlord forces began an assault 19879 | -5/Waste | Identified Bomb Drone Bay 19889 | -5/Waste | Allies destroyed C-40 Crusher 19894 | -5/Waste | Lost 5 parts (2n1u2w) 20128 | -5/Waste | Build established: Hacker-Mutant 20403 | -5/Waste | Entered Factory 20403 | -5/Factory | Accompanied by 18 allies 20937 | -5/Factory | Build established: Hacker-Gunner 21392 | -5/Factory | P-70 Sage assimilated allied LM-7IX(g) 21413 | -5/Factory | P-70 Sage assimilated allied EQ-ZDE(m) 21862 | -5/Factory | Destroyed 8 combat bots 21876 | -5/Factory | Discovered exit to Upper Caves (range 16) 21964 | -5/Factory | Entered Upper Caves 22236 | -5/Upper Caves | Build established: Scavenger-Mutant 22540 | -5/Upper Caves | Build established: Scavenger-Tank 23083 | -5/Upper Caves | Attracted the attention of an 0b10 checkpoint 23111 | -5/Upper Caves | Discovered new exit (range 8) 23135 | -5/Upper Caves | Entered another Upper Caves area 23303 | -5/Upper Caves | Spotted B-75 Beast 23380 | -5/Upper Caves | Build established: Scavenger-Mutant 23499 | -5/Upper Caves | Discovered new exit (range 10) 24123 | -5/Upper Caves | Discovered new exit (range 5) 24138 | -5/Upper Caves | Entered Warlord 24776 | -5/Warlord | Learned Quarantine emergency access door positions 24776 | -5/Warlord | Learned Research stockpile data 24777 | -5/Warlord | Learned 4 Armory zone layouts 24777 | -5/Warlord | Learned 4 Armory zone layouts 24777 | -5/Warlord | Learned 4 Armory zone layouts 24777 | -5/Warlord | Learned 4 Research zone layouts 24779 | -5/Warlord | Learned Armory terminal intel 24779 | -5/Warlord | Learned Armory fabricator intel 24779 | -5/Warlord | Learned Armory repair station intel 24779 | -5/Warlord | Learned Research terminal intel 24830 | -5/Warlord | Visited the Vortex Lab 24839 | -5/Warlord | Found Prototype Energy Gun 24842 | -5/Warlord | Found Prototype Energy Gun 24853 | -5/Warlord | Build established: Commander-Mutant 24989 | -5/Warlord | Found Prototype Device 25146 | -5/Warlord | Warlord's base attacked by MAIN.C 25152 | -5/Warlord | Found Prototype Special Weapon 25152 | -5/Warlord | Identified RU-N14's Throwing Claymores v3 25156 | -5/Warlord | Found RU-N14's Throwing Claymores v3 25160 | -5/Warlord | Found RU-N14's Throwing Claymores v3 25164 | -5/Warlord | Found RU-N14's Throwing Claymores v3 25285 | -5/Warlord | Met Warlord 25307 | -5/Warlord | Opened Warlord's prototype stash 25315 | -5/Warlord | Found Prototype Reactor 25315 | -5/Warlord | Identified Vortex Chain Reactor 25331 | -5/Warlord | Found Prototype Device 25331 | -5/Warlord | Identified System Purifier 25477 | -5/Warlord | P-80 Master assimilated allied V6-FUD(M) 25496 | -5/Warlord | Warlord forces counterattacked 25556 | -5/Warlord | Spotted Striker 25558 | -5/Warlord | Destroyed LA-LMH(g) 25560 | -5/Warlord | Destroyed Striker 25567 | -5/Warlord | Allies destroyed Striker 25600 | -5/Warlord | Spotted Executioner 25611 | -5/Warlord | Destroyed Executioner 25669 | -5/Warlord | Spotted Executioner 25680 | -5/Warlord | Destroyed Executioner 25702 | -5/Warlord | Discovered new exit (range 12) 25738 | -5/Warlord | Entered Proximity Caves 25738 | -4/Proximity Caves | Accompanied by 4 allies 26058 | -4/Proximity Caves | Build established: Mutant 26072 | -4/Proximity Caves | Spotter reported a threat 26107 | -4/Proximity Caves | Learned location of 1 exit from Research 26159 | -4/Proximity Caves | Learned Research trap positions 26383 | -4/Proximity Caves | Discovered new exit (range 11) 26415 | -4/Proximity Caves | Entered Factory 26415 | -4/Factory | Accompanied by 3 allies 26415 | -4/Factory | Evolved 2 slots: Utility x2 26760 | -4/Factory | P-70 Sage assimilated allied Sentinel 6a 26777 | -4/Factory | Spotted B-86 Titan 26791 | -4/Factory | Destroyed B-86 Titan 26801 | -4/Factory | Identified Vortex Rifle (x2) 26838 | -4/Factory | Destroyed 10 combat bots 27182 | -4/Factory | Build established: Hacker-Tank 27665 | -4/Factory | First assault squad dispatched 27712 | -4/Factory | Sucked down chute 27712 | -4/Factory | Entered Waste 27724 | -4/Waste | Spotted C-40 Crusher 27727 | -4/Waste | EMP discharged 27745 | -4/Waste | Spotted C-40 Crusher 27747 | -4/Waste | Spotted C-40 Crusher 27764 | -4/Waste | Spotted C-40 Crusher 27774 | -4/Waste | Spotted C-40 Crusher 27783 | -4/Waste | Crushed by Compactor (1 part destroyed) 27786 | -4/Waste | Spotted C-40 Crusher 27795 | -4/Waste | Crushed by Compactor (0 parts destroyed, 1 dropped) 27822 | -4/Waste | Discovered new exit (range 10) 27827 | -4/Waste | EMP discharged 27827 | -4/Waste | System corruption reached 10% 27834 | -4/Waste | Entered Factory 27934 | -4/Factory | Discovered new exit (range 5) 27941 | -4/Factory | Identified exit to Upper Caves 28076 | -4/Factory | Incoming investigation squad redirected 28091 | -4/Factory | Garrison activated, responded to threat 28178 | -4/Factory | Lost 4 parts (1p2u1w) 28222 | -4/Factory | Build established: Tank 28260 | -4/Factory | Entered Upper Caves 28325 | -4/Upper Caves | Learned Research emergency access door positions 28416 | -4/Upper Caves | Attracted the attention of an 0b10 checkpoint 28480 | -4/Upper Caves | Learned location of Quarantine (-3) 28564 | -4/Upper Caves | Build established: Gunner 28736 | -4/Upper Caves | Discovered new exit (range 14) 28752 | -4/Upper Caves | Identified exit to Upper Caves 28755 | -4/Upper Caves | Entered another Upper Caves area 28767 | -4/Upper Caves | Discovered new exit (range 11) 28904 | -4/Upper Caves | Lost 5 parts (1p1n2u1w) 29175 | -4/Upper Caves | Build established: Mutant 29324 | -4/Upper Caves | Attracted the attention of an 0b10 outpost 29325 | -4/Upper Caves | Discovered new exit (range 12) 29363 | -4/Upper Caves | Destroyed 8 combat bots 29377 | -4/Upper Caves | Identified exit to Zhirov 29381 | -4/Upper Caves | Entered Zhirov 29381 | -4/Zhirov | Accompanied by 1 ally 29384 | -4/Zhirov | Discovered new exit (range 3) 29403 | -4/Zhirov | Met Zhirov 29423 | -4/Zhirov | Learned location of Testing (-2) 29423 | -4/Zhirov | Learned location of Command (-1) 29433 | -4/Zhirov | Zhirov requested help retrieving the SGEMP Prototype 29466 | -4/Zhirov | Found Alien Artifact 29480 | -4/Zhirov | Found Alien Artifact 29480 | -4/Zhirov | Identified Integrated Dissipator 29480 | -4/Zhirov | Installed Integrated Dissipator, increased core heat dissipation (+20) 29627 | -4/Zhirov | Identified exit to Proximity Caves 29631 | -4/Zhirov | Entered Proximity Caves 29631 | -3/Proximity Caves | Accompanied by 1 ally 29979 | -3/Proximity Caves | Discovered new exit (range 7) 29986 | -3/Proximity Caves | Identified exit to Research 29996 | -3/Proximity Caves | Entered Research 29996 | -3/Research | Accompanied by 1 ally 29996 | -3/Research | Evolved 2 slots: Utility x2 29997 | -3/Research | Identified exit to Research 29999 | -3/Research | Loaded intel: 89 trap records 30002 | -3/Research | Loaded intel: 22 terminal locations 30125 | -3/Research | Build established: Derelict-Mutant 30226 | -3/Research | Found Prototype Device 30226 | -3/Research | Identified Exp. Thermal Defense Suite 30634 | -3/Research | Identified Transdimensional Reconstructor 30634 | -3/Research | Warped through subspace 30660 | -3/Research | Lost 4 parts (1p1u2w) 30683 | -3/Research | Spotted B-86 Titan 31120 | -3/Research | Core integrity fell below 50% 31123 | -3/Research | System corruption reached 10% 31145 | -3/Research | Identified Wardrone Bay 31172 | -3/Research | Lost 6 parts (2p1u3w) 31234 | -3/Research | Found Adv. Powered Armor 31298 | -3/Research | Found Adv. Powered Armor 31445 | -3/Research | Build established: Mutant 31884 | -3/Research | Found Enh. Force Lance 31978 | -3/Research | Build established: Scavenger-Mutant 32048 | -3/Research | Identified exit to Quarantine 32118 | -3/Research | Discovered exit to Research (range 16) 32188 | -3/Research | Entered Quarantine 32287 | -3/Quarantine | Found Alien Artifact 32315 | -3/Quarantine | Identified Terrabomb 32315 | -3/Quarantine | Used Terrabomb 32367 | -3/Quarantine | Incoming investigation squad redirected 32473 | -3/Quarantine | Cryocooling Duct disabled 32488 | -3/Quarantine | Ambient heat levels rising (+20) 32488 | -3/Quarantine | Non-combat units ordered to evacuate 32508 | -3/Quarantine | System corruption reached 30% 32604 | -3/Quarantine | Found Alien Reactor 32770 | -3/Quarantine | Lost 4 parts (1p1u2w) 32876 | -3/Quarantine | Found Alien Artifact 32876 | -3/Quarantine | Identified Core Reset Matrix 32876 | -3/Quarantine | Identified Matter Drive 32876 | -3/Quarantine | Used Core Reset Matrix 32880 | -3/Quarantine | Detected hypermatrix surge 32880 | -3/Quarantine | Sensed 12 artifacts in vicinity 32954 | -3/Quarantine | Found Subatomic Replicator 33248 | -3/Quarantine | Found Unknown Launcher 33490 | -3/Quarantine | Discovered exit to Research (range 8) 33521 | -3/Quarantine | Found Transdimensional Reconstructor 33526 | -3/Quarantine | Found Transdimensional Reconstructor 33533 | -3/Quarantine | Found Transdimensional Reconstructor 33559 | -3/Quarantine | Identified Gamma Bomb Array 33611 | -3/Quarantine | Found Core Cannon 33646 | -3/Quarantine | Entered Research 33646 | -2/Research | Warlord forces began assault on 0b10 33646 | -2/Research | Evolved 2 slots: Utility x2 33756 | -2/Research | Research machine network offline 33785 | -2/Research | Found Prototype Processor 33785 | -2/Research | Identified Spectral Analyzer 33818 | -2/Research | Met up with Warlord 33964 | -2/Research | Crushed by falling debris 34078 | -2/Research | Borebot progress halted 34259 | -2/Research | Discovered new exit (range 9) 34269 | -2/Research | Identified exit to Testing 34276 | -2/Research | Found Prototype Processor 34276 | -2/Research | Identified Exp. Melee Analysis Suite 34288 | -2/Research | Borebot progress halted 34295 | -2/Research | Entered Testing 34338 | -2/Testing | Found Prototype Energy Gun 34338 | -2/Testing | Identified Tachyon Dispersion Ray 34362 | -2/Testing | Garrison activated, responded to threat 34467 | -2/Testing | Garrison activated, responded to threat 34589 | -2/Testing | Warped through subspace 34611 | -2/Testing | Lost 7 parts (2n2u3w) 34757 | -2/Testing | Destroyed 7 combat bots 34795 | -2/Testing | First assault squad dispatched 34806 | -2/Testing | Discovered new exit (range 15) 34807 | -2/Testing | Destroyed 8 combat bots 34813 | -2/Testing | Lost 9 parts (2p1n5u1w) 34826 | -2/Testing | Found Prototype Energy Gun 34839 | -2/Testing | System corruption reached 10% 34854 | -2/Testing | Identified exit to Access 34855 | -2/Testing | Entered Access 34855 | -1/Access | Evolved 2 slots: Weapon x2 34871 | -1/Access | Lost 3 parts (3u) 34934 | -1/Access | Identified Warp Gun 34976 | -1/Access | Energy Cycler disabled 34981 | -1/Access | Spotted B-99 Colossus 35033 | -1/Access | Lost 4 parts (1p2n1w) 35063 | -1/Access | Warped through subspace 35079 | -1/Access | Warped through subspace 35080 | -1/Access | Self-destructed Last Messages --------------- 35055_ Destroyed Unknown Reactor. 35056_ Slug penetrates Wall. 35059_ Penetrated by Slug. 35059_ Enh. Force Lance destroyed. 35060_ Wall collapses. 35060_ Penetrated by Slug. 35063_ Warped through subspace. 35066_ U-05 Engineer builds a Wall. 35067_ U-05 Engineer lays Concrete. 35073_ U-05 Engineer builds a Wall. 35073_ U-05 Engineer lays Concrete. 35074_ Slug penetrates K-01 Serf. 35074_ Slug penetrates Wall. 35074_ U-05 Engineer lays Concrete. 35076_ Acquired 10 matter. 35078_ Slug penetrates Door. 35078_ Warp Gun destroyed. 35078_ Penetrated by Slug. 35078_ Slug penetrates Wall. 35079_ Warped through subspace. Map ----- +----------------------------------------------------+ | ?????????????????????????????????????????????????? | | ?????????????????????????????????????????????????? | | ?????????????????????????????????????????????????? | | ?????????????????????????????????????????????????? | | ?????????????????????????????????????????????????? | | ?????????????????????????????????????????????????? | | ?????????????????????????????????????????????????? | | ?????????????????????????????????????????????????? | | ?????????????????????????????????????????????????? | | ?????????????????????????????????????????????????? | | ?????????????????????????????????????????????????? | | ?????????????????????????????????????????????????? | | ?????????????????????????????????????????????????? | | ?????????????????????????????????????????????????? | | ?????????????????????????????????????????????????? | | ?????????????????????????????????????????????????? | | ?????????????????????????????????????????????????? | | ?????????????????????????????????????????????????? | | ?????????????????????????????????????????????????? | | ?????????????????????????????????????????????????? | | ?????????????????????????????????????????????????? | | ?????????????????????????????????????????????????? | | ?????????????????????????????????????????????????? | | ???????????????##+#########+##???????????????????? | | ???????????????# #???????????????????? | | ???????????????# @ k #???????????????????? | | ???????????????# #???????????????????? | | ???????????????########### lg#???????????????????? | | ??????????????????????????g #???????????????????? | | ??????????????????????????gk #??????????????????? | | ?????????????????????????? H #??????????????????? | | ??????????????????????????? +?????????????? ???? | | ??????????????????????????? #??????????????????? | | ???????????????????????????= #??????????????????? | | ??????????????????????????? ###??????????????????? | | ????????????????????????????#???????????????#????? | | ??????????????????????????????????????????? ???#+? | | ????????????????????????????????????????????## | | ??????????????????????????????????????????? | | ????????????????????????????????#??????????? | | ?????????????????????????????????? ????????? | | ?????????????????????????????????????????? ?? | | ????????????????????????????????????????#????# | | ?????????????????????????????????????????????# | | ?????????????????????????????#???????????????# | | ??????????????????????????????????????????#### | | ???????????????????????????????????????????# | | ??????????????????????????? ???????????????# | | ??????????????????????????????????????#????##" | | ????????????????????????????????????#????????# % | +----------------------------------------------------+ Best States ------------- Heat Dissipation 123 Coolant Potential 80 Energy Generation 55 Energy Capacity 700 Matter Stores 600 Matter Capacity 600 Sight Range 16 Robot Scan Range 16 Terrain Scan Range 24 Terrain Scan Density 10 ECM Strength 2 Jamming Range 14 Corruption Block 15 Armor Coverage 1250 Resistance: TH 30 Resistance: EX 25 Core Shielding 20 Propulsion Shielding 66 Weapon Cycling 25 Phase Shifting 10 Evasion (%) 55 Targeting Accuracy 16 Launcher Accuracy 40 Recoil Reduction 6 Particle Charging 30 Offensive Hacking 25 Trap Extractor Capacity 6 Item Schematics ----------------- Exp. Hacking Suite | -2/Testing | Archive Enh. Armored Heavy Treads | -2/Testing | Archive Robot Schematics ------------------ R-10 Processor | -2/Testing | Archive Fabricated ------------ Nothing Alien Tech Used ----------------- Integrated Dissipator Transdimensional Reconstructor Terrabomb Core Reset Matrix Achievements -------------- None Challenges ------------ None Game ------ Seed SapperSpikedMonowheel Manual? 0 Play Time 02:41:09 Cumulative 382.2 hours Start 2023.11.20 @ 22:47:03 End 2023.11.23 @ 12:11:32 Sessions 7 Manual Loads 0 Difficulty Rogue Special Mode None Game No. 559 Rogue 532 Adventurer 4 Explorer 23 Win Type - Total 20 Types 14/0/2/2/1/0/0/1/0 Lore% 81 Gallery% 92 Achievement% 83 Wizard Run 0 Options --------- ASCII 0 Keyboard 1 Movement Numpad Keybinds 0 Fullscreen 2 Font 18/SmallcapsGlow Map View 76x50 Tactical HUD 1 Map Filters NONE Filters NONE Steam 1 RUN: 8f96a211-00d3-438a-a144-d565377ef985